{"text_format":"3","workbook":"xlsx","n_sheets":14,"sheets":["Menu2","Menu","Consultas","Pesquisa","Estoque","Entradas","Saídas","Perdas","F e C","Ajustes","Ajuda","Aviso","Versão","Comparativo"],"not_rendered":{"images":28,"macros":1,"external_links":6,"defined_names":37},"read":"whole","date_system":"1900"}

{"sheet":"Menu2","index":0,"n_rows":20,"n_cols":13,"rows_kept":20,"merged":[[0,3,2,8],[1,10,1,12],[3,3,3,8],[9,10,11,10],[13,10,13,12],[14,10,14,12]]}
["Menu 1",null,null,"Controle de estoques"]
[1,"Cadastro",{"$nulls":8},"COMEÇE POR AQUI"]
["1.1","Estoque"]
["1.2","Entradas",null,"A versão completa dessa planilha está disponível no site inovar.net - clique aqui",{"$nulls":6},"MENU PRINCIPAL",null,"AJUDA"]
["1.3","Saídas"]
["1.4","Perdas",null,"O melhor sistema é quele que melhor atende as necessidadedas da empresa"]
[2,"Fornecedores e clientes"]
[3,"Consulta simples"]
[4,"Pesquisa",null,"Quantidade de itens no estoque",{"$nulls":3},{"$f":"SUM(TabelaEstoque[Saldo])","v":205}]
["4.1","|Pesquisar no estoque",{"$nulls":8},"PÁGINA DA PLANILHA",null,"Loja Inovar.net"]
[5,"Ajustes",null,"Variedade de itens em estoque",{"$nulls":3},{"$f":"COUNTA(TabelaEstoque[Descrição])","v":11}]
[]
[{"$nulls":3},"Valor dos produto no estoque (em breve)",{"$nulls":3},0]
[{"$nulls":10},"TEM ALGUMA SUGESTÃO"]
["*","Ajuda",null,{"$f":"IF(H15>0,\"Cuidado! Alguns produtos com estoque baixo.\",\"Aparentemente nenhum produto com estoque baixo.\")","v":"Cuidado! Alguns produtos com estoque baixo."},{"$nulls":3},{"$f":"COUNTIF(TabelaEstoque[Resuprimento],Ajustes!H5)","v":10},null,null,"Envie sua sugestão clicando abaixo"]
["*","Versão"]
["*","Aviso"]
["*","Site do desenvolvedor"]
["*","Fórum"]
["*","Outros projetos"]

{"sheet":"Menu","index":1,"n_rows":1,"n_cols":2,"rows_kept":1,"merged":[[0,1,0,13]]}
[null,"PLANILHA CONTROLE DE ESTOQUE SIMPLIFICADO"]

{"sheet":"Consultas","index":2,"n_rows":22,"n_cols":10,"rows_kept":22,"merged":[[16,1,16,3]]}
[null,"Dígite o código abaixo","SKU",null,"DESCRIÇÃO"]
[2,{"$f":"INDEX(TabelaEstoque[[SKU]:[Descrição]],A2,MATCH(TabelaEstoque[[#Headers],[SKU]],TabelaEstoque[#Headers],0))","v":{"v":2,"d":"00002"}},{"$nulls":7},"AVISO:"]
[]
["Descrição",{"$f":"VLOOKUP($B$2,TabelaEstoque[],MATCH(TabelaEstoque[[#Headers],[Descrição]],TabelaEstoque[#Headers],0),FALSE)","v":"Etiqueta de composição M"}]
["Tipo",{"$f":"VLOOKUP($B$2,TabelaEstoque[],MATCH(TabelaEstoque[[#Headers],[Tipos]],TabelaEstoque[#Headers],0),FALSE)","v":"Materia Prima"}]
["Medição",{"$f":"VLOOKUP($B$2,TabelaEstoque[],MATCH(TabelaEstoque[[#Headers],[Medição]],TabelaEstoque[#Headers],0),)","v":"Unidade"}]
["Entradas",{"$f":"VLOOKUP($B$2,TabelaEstoque[],MATCH(TabelaEstoque[[#Headers],[Entradas]],TabelaEstoque[#Headers],0),FALSE)","v":0}]
["Saídas",{"$f":"VLOOKUP($B$2,TabelaEstoque[],MATCH(TabelaEstoque[[#Headers],[Saídas]],TabelaEstoque[#Headers],0),FALSE)","v":0}]
["Percas",{"$f":"VLOOKUP($B$2,TabelaEstoque[],MATCH(TabelaEstoque[[#Headers],[Percas]],TabelaEstoque[#Headers],0),FALSE)","v":0}]
["Saldo",{"$f":"VLOOKUP($B$2,TabelaEstoque[],MATCH(TabelaEstoque[[#Headers],[Saldo]],TabelaEstoque[#Headers],0),FALSE)","v":0}]
["Status",{"$f":"VLOOKUP($B$2,TabelaEstoque[],MATCH(TabelaEstoque[[#Headers],[Resuprimento]],TabelaEstoque[#Headers],0),FALSE)","v":"Comprar Agora"}]
["Código Fornecedor",{"$f":"VLOOKUP($B$2,TabelaEstoque[],MATCH(TabelaEstoque[[#Headers],[Código Forcenedor]],TabelaEstoque[#Headers],0),FALSE)","v":2}]
["Nome Fornecedor",{"$f":"VLOOKUP($B$2,TabelaEstoque[],MATCH(TabelaEstoque[[#Headers],[Nome Fornecedor]],TabelaEstoque[#Headers],0),FALSE) &\" \"& VLOOKUP($B$2,TabelaEstoque[],MATCH(TabelaEstoque[[#Headers],[Sobrenome]],TabelaEstoque[#Headers],0),FALSE)","v":"Roberto José"}]
[{"$nulls":3},"Escolha o produto nas listas acima."]
[]
["Digite o SKU    >>>",{"v":1,"d":"00001"},{"$f":"VLOOKUP(B16,TabelaEstoque[],1,FALSE)","v":1}]
["Descrição",{"$f":"IFERROR(VLOOKUP($C$16,TabelaEstoque[],MATCH(TabelaEstoque[[#Headers],[Descrição]],TabelaEstoque[#Headers],0),FALSE),\"SKU NÃO ENCONTRADO\")","v":"Etiqueta de composição P"}]
["Tipo",{"$f":"VLOOKUP($B$16,TabelaEstoque[],MATCH(TabelaEstoque[[#Headers],[Tipos]],TabelaEstoque[#Headers],0),FALSE)","v":"Materia Prima"},null,"Saldo",{"$f":"VLOOKUP($B$16,TabelaEstoque[],MATCH(TabelaEstoque[[#Headers],[Saldo]],TabelaEstoque[#Headers],0),FALSE)","v":110}]
["Medição",{"$f":"VLOOKUP($B$16,TabelaEstoque[],MATCH(TabelaEstoque[[#Headers],[Medição]],TabelaEstoque[#Headers],0),FALSE)","v":"Unidade"},null,"Status",{"$f":"VLOOKUP($B$16,TabelaEstoque[],MATCH(TabelaEstoque[[#Headers],[Resuprimento]],TabelaEstoque[#Headers],0),FALSE)","v":"Quantidade Ideal"}]
["Entradas",{"$f":"VLOOKUP($B$16,TabelaEstoque[],MATCH(TabelaEstoque[[#Headers],[Entradas]],TabelaEstoque[#Headers],0),FALSE)","v":135},null,null,"Fornecedor"]
["Saídas",{"$f":"VLOOKUP($B$16,TabelaEstoque[],MATCH(TabelaEstoque[[#Headers],[Saídas]],TabelaEstoque[#Headers],0),FALSE)","v":10},null,"Nome",{"$f":"VLOOKUP($B$16,TabelaEstoque[],MATCH(TabelaEstoque[[#Headers],[Nome Fornecedor]],TabelaEstoque[#Headers],0),FALSE) &\" \"& VLOOKUP($B$16,TabelaEstoque[],MATCH(TabelaEstoque[[#Headers],[Sobrenome]],TabelaEstoque[#Headers],0),FALSE)","v":"José Silva"}]
["Percas",{"$f":"VLOOKUP($B$16,TabelaEstoque[],MATCH(TabelaEstoque[[#Headers],[Percas]],TabelaEstoque[#Headers],0),FALSE)","v":15},null,"Código",{"$f":"VLOOKUP($B$16,TabelaEstoque[],MATCH(TabelaEstoque[[#Headers],[Código Forcenedor]],TabelaEstoque[#Headers],0),FALSE)","v":1}]

{"sheet":"Pesquisa","index":3,"n_rows":69,"n_cols":14,"rows_kept":69}
[null,"PESQUISAR ESTOQUE"]
[]
[null,"Digite ou escolha abaixo os critérios de pesquisa"]
[{"$f":"Estoque!A2","v":"SKU"},{"$f":"Estoque!B2","v":"Descrição"},{"$f":"Estoque!C2","v":"Tipos"},{"$f":"Estoque!D2","v":"Medição"},{"$f":"Estoque!E2","v":"Código Forcenedor"},{"$f":"Estoque!F2","v":"Nome Fornecedor"},{"$f":"Estoque!G2","v":"Sobrenome"},{"$f":"Estoque!H2","v":"Entradas"},{"$f":"Estoque!I2","v":"Saídas"},{"$f":"Estoque!J2","v":"Percas"},{"$f":"Estoque!K2","v":"Saldo"},{"$f":"Estoque!L2","v":"Mínimo"},{"$f":"Estoque!M2","v":"Máximo"},{"$f":"Estoque!N2","v":"Resuprimento"}]
[{"$nulls":5},{"$f":"IFERROR(VLOOKUP(E5,TabelaFC[],MATCH(TabelaFC[[#Headers],[Nome]],TabelaFC[#Headers],0)),\"\")","v":""},{"$f":"IFERROR(VLOOKUP(E5,TabelaFC[],MATCH(TabelaFC[[#Headers],[Sobrenome]],TabelaFC[#Headers],0)),\"\")","v":""}]
[]
[null,"Resultado da busca"]
[{"$f":"Estoque!A2","v":"SKU"},{"$f":"Estoque!B2","v":"Descrição"},{"$f":"Estoque!C2","v":"Tipos"},{"$f":"Estoque!D2","v":"Medição"},{"$f":"Estoque!E2","v":"Código Forcenedor"},{"$f":"Estoque!F2","v":"Nome Fornecedor"},{"$f":"Estoque!G2","v":"Sobrenome"},{"$f":"Estoque!H2","v":"Entradas"},{"$f":"Estoque!I2","v":"Saídas"},{"$f":"Estoque!J2","v":"Percas"},{"$f":"Estoque!K2","v":"Saldo"},{"$f":"Estoque!L2","v":"Mínimo"},{"$f":"Estoque!M2","v":"Máximo"},{"$f":"Estoque!N2","v":"Resuprimento"}]
[{"v":1,"d":"000001"},"Etiqueta de composição P","Materia Prima","Unidade",1,"José","Silva",135,10,15,110,100,300,"Quantidade Ideal"]
[{"v":2,"d":"000002"},"Etiqueta de composição M","Materia Prima","Unidade",2,"Roberto","José",0,0,0,0,100,300,"Comprar Agora"]
[{"v":3,"d":"000003"},"Etiqueta de composição G","Materia Prima","Pacote",1,"José","Silva",30,0,0,30,100,300,"Comprar Agora"]
[{"v":4,"d":"000004"},"Etiqueta de composição GG","Materia Prima","Peça",1,"José","Silva",80,0,0,80,100,300,"Comprar Agora"]
[{"v":5,"d":"000005"},"camiseta","Produto Pronto","Peça",1,"José","Silva",0,15,0,-15,30,40,"Comprar Agora"]
[{"v":6,"d":"000006"},"fivela","Materia Prima","Unidade",1,"José","Silva",0,0,0,0,30,40,"Comprar Agora"]
[{"v":7,"d":"000007"},"linha branca","Materia Prima","Metro",2,"Roberto","José",0,0,0,0,40,50,"Comprar Agora"]
[{"v":8,"d":"000008"},"fio branco","Materia Prima","Kilo",2,"Roberto","José",0,0,0,0,50,55,"Comprar Agora"]
[{"v":9,"d":"000009"},"linha azul","Materia Prima","Gramas",2,"Roberto","José",0,0,0,0,50,55,"Comprar Agora"]
[{"v":10,"d":"000010"},"fio azul","Materia Prima","Caixa",2,"Roberto","José",0,0,0,0,50,55,"Comprar Agora"]
[{"v":11,"d":"000011"},"short","Produto Pronto","Peça",2,"Roberto","José",0,0,0,0,20,50,"Comprar Agora"]
[{"$nulls":5},"","",0,0,0,0,null,null,""]
[{"$nulls":5},"","",0,0,0,0,null,null,""]
[{"$nulls":5},"","",0,0,0,0,null,null,""]
[{"$nulls":5},"","",0,0,0,0,null,null,""]
[{"$nulls":5},"","",0,0,0,0,null,null,""]
[{"$nulls":5},"","",0,0,0,0,null,null,""]
[{"$nulls":5},"","",0,0,0,0,null,null,""]
[{"$nulls":5},"","",0,0,0,0,null,null,""]
[{"$nulls":5},"","",0,0,0,0,null,null,""]
[{"$nulls":5},"","",0,0,0,0,null,null,""]
[{"$nulls":5},"","",0,0,0,0,null,null,""]
[{"$nulls":5},"","",0,0,0,0,null,null,""]
[{"$nulls":5},"","",0,0,0,0,null,null,""]
[{"$nulls":5},"","",0,0,0,0,null,null,""]
[{"$nulls":5},"","",0,0,0,0,null,null,""]
[{"$nulls":5},"","",0,0,0,0,null,null,""]
[{"$nulls":5},"","",0,0,0,0,null,null,""]
[{"$nulls":5},"","",0,0,0,0,null,null,""]
[{"$nulls":5},"","",0,0,0,0,null,null,""]
[{"$nulls":5},"","",0,0,0,0,null,null,""]
[{"$nulls":5},"","",0,0,0,0,null,null,""]
[{"$nulls":5},"","",0,0,0,0,null,null,""]
[{"$nulls":5},"","",0,0,0,0,null,null,""]
[{"$nulls":5},"","",0,0,0,0,null,null,""]
[{"$nulls":5},"","",0,0,0,0,null,null,""]
[{"$nulls":5},"","",0,0,0,0,null,null,""]
[{"$nulls":5},"","",0,0,0,0,null,null,""]
[{"$nulls":5},"","",0,0,0,0,null,null,""]
[{"$nulls":5},"","",0,0,0,0,null,null,""]
[{"$nulls":5},"","",0,0,0,0,null,null,""]
[{"$nulls":5},"","",0,0,0,0,null,null,""]
[{"$nulls":5},"","",0,0,0,0,null,null,""]
[{"$nulls":5},"","",0,0,0,0,null,null,""]
[{"$nulls":5},"","",0,0,0,0,null,null,""]
[{"$nulls":5},"","",0,0,0,0,null,null,""]
[{"$nulls":5},"","",0,0,0,0,null,null,""]
[{"$nulls":5},"","",0,0,0,0,null,null,""]
[{"$nulls":5},"","",0,0,0,0,null,null,""]
[{"$nulls":5},"","",0,0,0,0,null,null,""]
[{"$nulls":5},"","",0,0,0,0,null,null,""]
[{"$nulls":5},"","",0,0,0,0,null,null,""]
[{"$nulls":5},"","",0,0,0,0,null,null,""]
[{"$nulls":5},"","",0,0,0,0,null,null,""]
[{"$nulls":5},"","",0,0,0,0,null,null,""]
[{"$nulls":5},"","",0,0,0,0,null,null,""]
[{"$nulls":5},"","",0,0,0,0,null,null,""]
[{"$nulls":5},"","",0,0,0,0,null,null,""]
[{"$nulls":5},"","",0,0,0,0,null,null,""]
[{"$nulls":5},"","",0,0,0,0,null,null,""]
[{"$nulls":5},"","",0,0,0,0,null,null,""]

{"sheet":"Estoque","index":4,"n_rows":63,"n_cols":14,"rows_kept":63}
[]
["SKU","Descrição","Tipos","Medição","Código Forcenedor","Nome Fornecedor","Sobrenome","Entradas","Saídas","Percas","Saldo","Mínimo","Máximo","Resuprimento"]
[{"v":1,"d":"000001"},"Etiqueta de composição P","Materia Prima","Unidade",1,{"$f":"IFERROR(VLOOKUP(TabelaEstoque[[#This Row],[Código Forcenedor]],TabelaFC[],MATCH(TabelaFC[[#Headers],[Nome]],TabelaFC[#Headers],0)),\"\")","v":"José"},{"$f":"IFERROR(VLOOKUP(TabelaEstoque[[#This Row],[Código Forcenedor]],TabelaFC[],MATCH(TabelaFC[[#Headers],[Sobrenome]],TabelaFC[#Headers],0)),\"\")","v":"Silva"},{"$f":"SUMIF(TabelaEntradas[SKU],TabelaEstoque[[#This Row],[SKU]],TabelaEntradas[Quantidade])","v":135},{"$f":"SUMIF(TabelaSaidas[SKU],TabelaEstoque[[#This Row],[SKU]],TabelaSaidas[Quantidade])","v":10},{"$f":"SUMIF(TabelaPercas[SKU],TabelaEstoque[[#This Row],[SKU]],TabelaPercas[Quantidade])","v":15},{"$f":"TabelaEstoque[[#This Row],[Entradas]]-TabelaEstoque[[#This Row],[Saídas]]-TabelaEstoque[[#This Row],[Percas]]","v":110},100,300,{"$f":"IF(TabelaEstoque[[#This Row],[Mínimo]]=\"\",\"\",IF(TabelaEstoque[[#This Row],[Saldo]]<=TabelaEstoque[[#This Row],[Mínimo]],Ajustes!$H$5,IF(TabelaEstoque[[#This Row],[Saldo]]>=TabelaEstoque[[#This Row],[Máximo]],Ajustes!$H$7,Ajustes!$H$6)))","v":"Quantidade Ideal"}]
[{"v":2,"d":"000002"},"Etiqueta de composição M","Materia Prima","Unidade",2,{"$f":"IFERROR(VLOOKUP(TabelaEstoque[[#This Row],[Código Forcenedor]],TabelaFC[],MATCH(TabelaFC[[#Headers],[Nome]],TabelaFC[#Headers],0)),\"\")","v":"Roberto"},{"$f":"IFERROR(VLOOKUP(TabelaEstoque[[#This Row],[Código Forcenedor]],TabelaFC[],MATCH(TabelaFC[[#Headers],[Sobrenome]],TabelaFC[#Headers],0)),\"\")","v":"José"},{"$f":"SUMIF(TabelaEntradas[SKU],TabelaEstoque[[#This Row],[SKU]],TabelaEntradas[Quantidade])","v":0},{"$f":"SUMIF(TabelaSaidas[SKU],TabelaEstoque[[#This Row],[SKU]],TabelaSaidas[Quantidade])","v":0},{"$f":"SUMIF(TabelaPercas[SKU],TabelaEstoque[[#This Row],[SKU]],TabelaPercas[Quantidade])","v":0},{"$f":"TabelaEstoque[[#This Row],[Entradas]]-TabelaEstoque[[#This Row],[Saídas]]-TabelaEstoque[[#This Row],[Percas]]","v":0},100,300,{"$f":"IF(TabelaEstoque[[#This Row],[Mínimo]]=\"\",\"\",IF(TabelaEstoque[[#This Row],[Saldo]]<=TabelaEstoque[[#This Row],[Mínimo]],Ajustes!$H$5,IF(TabelaEstoque[[#This Row],[Saldo]]>=TabelaEstoque[[#This Row],[Máximo]],Ajustes!$H$7,Ajustes!$H$6)))","v":"Comprar Agora"}]
[{"v":3,"d":"000003"},"Etiqueta de composição G","Materia Prima","Pacote",1,{"$f":"IFERROR(VLOOKUP(TabelaEstoque[[#This Row],[Código Forcenedor]],TabelaFC[],MATCH(TabelaFC[[#Headers],[Nome]],TabelaFC[#Headers],0)),\"\")","v":"José"},{"$f":"IFERROR(VLOOKUP(TabelaEstoque[[#This Row],[Código Forcenedor]],TabelaFC[],MATCH(TabelaFC[[#Headers],[Sobrenome]],TabelaFC[#Headers],0)),\"\")","v":"Silva"},{"$f":"SUMIF(TabelaEntradas[SKU],TabelaEstoque[[#This Row],[SKU]],TabelaEntradas[Quantidade])","v":30},{"$f":"SUMIF(TabelaSaidas[SKU],TabelaEstoque[[#This Row],[SKU]],TabelaSaidas[Quantidade])","v":0},{"$f":"SUMIF(TabelaPercas[SKU],TabelaEstoque[[#This Row],[SKU]],TabelaPercas[Quantidade])","v":0},{"$f":"TabelaEstoque[[#This Row],[Entradas]]-TabelaEstoque[[#This Row],[Saídas]]-TabelaEstoque[[#This Row],[Percas]]","v":30},100,300,{"$f":"IF(TabelaEstoque[[#This Row],[Mínimo]]=\"\",\"\",IF(TabelaEstoque[[#This Row],[Saldo]]<=TabelaEstoque[[#This Row],[Mínimo]],Ajustes!$H$5,IF(TabelaEstoque[[#This Row],[Saldo]]>=TabelaEstoque[[#This Row],[Máximo]],Ajustes!$H$7,Ajustes!$H$6)))","v":"Comprar Agora"}]
[{"v":4,"d":"000004"},"Etiqueta de composição GG","Materia Prima","Peça",1,{"$f":"IFERROR(VLOOKUP(TabelaEstoque[[#This Row],[Código Forcenedor]],TabelaFC[],MATCH(TabelaFC[[#Headers],[Nome]],TabelaFC[#Headers],0)),\"\")","v":"José"},{"$f":"IFERROR(VLOOKUP(TabelaEstoque[[#This Row],[Código Forcenedor]],TabelaFC[],MATCH(TabelaFC[[#Headers],[Sobrenome]],TabelaFC[#Headers],0)),\"\")","v":"Silva"},{"$f":"SUMIF(TabelaEntradas[SKU],TabelaEstoque[[#This Row],[SKU]],TabelaEntradas[Quantidade])","v":80},{"$f":"SUMIF(TabelaSaidas[SKU],TabelaEstoque[[#This Row],[SKU]],TabelaSaidas[Quantidade])","v":0},{"$f":"SUMIF(TabelaPercas[SKU],TabelaEstoque[[#This Row],[SKU]],TabelaPercas[Quantidade])","v":0},{"$f":"TabelaEstoque[[#This Row],[Entradas]]-TabelaEstoque[[#This Row],[Saídas]]-TabelaEstoque[[#This Row],[Percas]]","v":80},100,300,{"$f":"IF(TabelaEstoque[[#This Row],[Mínimo]]=\"\",\"\",IF(TabelaEstoque[[#This Row],[Saldo]]<=TabelaEstoque[[#This Row],[Mínimo]],Ajustes!$H$5,IF(TabelaEstoque[[#This Row],[Saldo]]>=TabelaEstoque[[#This Row],[Máximo]],Ajustes!$H$7,Ajustes!$H$6)))","v":"Comprar Agora"}]
[{"v":5,"d":"000005"},"camiseta","Produto Pronto","Peça",1,{"$f":"IFERROR(VLOOKUP(TabelaEstoque[[#This Row],[Código Forcenedor]],TabelaFC[],MATCH(TabelaFC[[#Headers],[Nome]],TabelaFC[#Headers],0)),\"\")","v":"José"},{"$f":"IFERROR(VLOOKUP(TabelaEstoque[[#This Row],[Código Forcenedor]],TabelaFC[],MATCH(TabelaFC[[#Headers],[Sobrenome]],TabelaFC[#Headers],0)),\"\")","v":"Silva"},{"$f":"SUMIF(TabelaEntradas[SKU],TabelaEstoque[[#This Row],[SKU]],TabelaEntradas[Quantidade])","v":0},{"$f":"SUMIF(TabelaSaidas[SKU],TabelaEstoque[[#This Row],[SKU]],TabelaSaidas[Quantidade])","v":15},{"$f":"SUMIF(TabelaPercas[SKU],TabelaEstoque[[#This Row],[SKU]],TabelaPercas[Quantidade])","v":0},{"$f":"TabelaEstoque[[#This Row],[Entradas]]-TabelaEstoque[[#This Row],[Saídas]]-TabelaEstoque[[#This Row],[Percas]]","v":-15},30,40,{"$f":"IF(TabelaEstoque[[#This Row],[Mínimo]]=\"\",\"\",IF(TabelaEstoque[[#This Row],[Saldo]]<=TabelaEstoque[[#This Row],[Mínimo]],Ajustes!$H$5,IF(TabelaEstoque[[#This Row],[Saldo]]>=TabelaEstoque[[#This Row],[Máximo]],Ajustes!$H$7,Ajustes!$H$6)))","v":"Comprar Agora"}]
[{"v":6,"d":"000006"},"fivela","Materia Prima","Unidade",1,{"$f":"IFERROR(VLOOKUP(TabelaEstoque[[#This Row],[Código Forcenedor]],TabelaFC[],MATCH(TabelaFC[[#Headers],[Nome]],TabelaFC[#Headers],0)),\"\")","v":"José"},{"$f":"IFERROR(VLOOKUP(TabelaEstoque[[#This Row],[Código Forcenedor]],TabelaFC[],MATCH(TabelaFC[[#Headers],[Sobrenome]],TabelaFC[#Headers],0)),\"\")","v":"Silva"},{"$f":"SUMIF(TabelaEntradas[SKU],TabelaEstoque[[#This Row],[SKU]],TabelaEntradas[Quantidade])","v":0},{"$f":"SUMIF(TabelaSaidas[SKU],TabelaEstoque[[#This Row],[SKU]],TabelaSaidas[Quantidade])","v":0},{"$f":"SUMIF(TabelaPercas[SKU],TabelaEstoque[[#This Row],[SKU]],TabelaPercas[Quantidade])","v":0},{"$f":"TabelaEstoque[[#This Row],[Entradas]]-TabelaEstoque[[#This Row],[Saídas]]-TabelaEstoque[[#This Row],[Percas]]","v":0},30,40,{"$f":"IF(TabelaEstoque[[#This Row],[Mínimo]]=\"\",\"\",IF(TabelaEstoque[[#This Row],[Saldo]]<=TabelaEstoque[[#This Row],[Mínimo]],Ajustes!$H$5,IF(TabelaEstoque[[#This Row],[Saldo]]>=TabelaEstoque[[#This Row],[Máximo]],Ajustes!$H$7,Ajustes!$H$6)))","v":"Comprar Agora"}]
[{"v":7,"d":"000007"},"linha branca","Materia Prima","Metro",2,{"$f":"IFERROR(VLOOKUP(TabelaEstoque[[#This Row],[Código Forcenedor]],TabelaFC[],MATCH(TabelaFC[[#Headers],[Nome]],TabelaFC[#Headers],0)),\"\")","v":"Roberto"},{"$f":"IFERROR(VLOOKUP(TabelaEstoque[[#This Row],[Código Forcenedor]],TabelaFC[],MATCH(TabelaFC[[#Headers],[Sobrenome]],TabelaFC[#Headers],0)),\"\")","v":"José"},{"$f":"SUMIF(TabelaEntradas[SKU],TabelaEstoque[[#This Row],[SKU]],TabelaEntradas[Quantidade])","v":0},{"$f":"SUMIF(TabelaSaidas[SKU],TabelaEstoque[[#This Row],[SKU]],TabelaSaidas[Quantidade])","v":0},{"$f":"SUMIF(TabelaPercas[SKU],TabelaEstoque[[#This Row],[SKU]],TabelaPercas[Quantidade])","v":0},{"$f":"TabelaEstoque[[#This Row],[Entradas]]-TabelaEstoque[[#This Row],[Saídas]]-TabelaEstoque[[#This Row],[Percas]]","v":0},40,50,{"$f":"IF(TabelaEstoque[[#This Row],[Mínimo]]=\"\",\"\",IF(TabelaEstoque[[#This Row],[Saldo]]<=TabelaEstoque[[#This Row],[Mínimo]],Ajustes!$H$5,IF(TabelaEstoque[[#This Row],[Saldo]]>=TabelaEstoque[[#This Row],[Máximo]],Ajustes!$H$7,Ajustes!$H$6)))","v":"Comprar Agora"}]
[{"v":8,"d":"000008"},"fio branco","Materia Prima","Kilo",2,{"$f":"IFERROR(VLOOKUP(TabelaEstoque[[#This Row],[Código Forcenedor]],TabelaFC[],MATCH(TabelaFC[[#Headers],[Nome]],TabelaFC[#Headers],0)),\"\")","v":"Roberto"},{"$f":"IFERROR(VLOOKUP(TabelaEstoque[[#This Row],[Código Forcenedor]],TabelaFC[],MATCH(TabelaFC[[#Headers],[Sobrenome]],TabelaFC[#Headers],0)),\"\")","v":"José"},{"$f":"SUMIF(TabelaEntradas[SKU],TabelaEstoque[[#This Row],[SKU]],TabelaEntradas[Quantidade])","v":0},{"$f":"SUMIF(TabelaSaidas[SKU],TabelaEstoque[[#This Row],[SKU]],TabelaSaidas[Quantidade])","v":0},{"$f":"SUMIF(TabelaPercas[SKU],TabelaEstoque[[#This Row],[SKU]],TabelaPercas[Quantidade])","v":0},{"$f":"TabelaEstoque[[#This Row],[Entradas]]-TabelaEstoque[[#This Row],[Saídas]]-TabelaEstoque[[#This Row],[Percas]]","v":0},50,55,{"$f":"IF(TabelaEstoque[[#This Row],[Mínimo]]=\"\",\"\",IF(TabelaEstoque[[#This Row],[Saldo]]<=TabelaEstoque[[#This Row],[Mínimo]],Ajustes!$H$5,IF(TabelaEstoque[[#This Row],[Saldo]]>=TabelaEstoque[[#This Row],[Máximo]],Ajustes!$H$7,Ajustes!$H$6)))","v":"Comprar Agora"}]
[{"v":9,"d":"000009"},"linha azul","Materia Prima","Gramas",2,{"$f":"IFERROR(VLOOKUP(TabelaEstoque[[#This Row],[Código Forcenedor]],TabelaFC[],MATCH(TabelaFC[[#Headers],[Nome]],TabelaFC[#Headers],0)),\"\")","v":"Roberto"},{"$f":"IFERROR(VLOOKUP(TabelaEstoque[[#This Row],[Código Forcenedor]],TabelaFC[],MATCH(TabelaFC[[#Headers],[Sobrenome]],TabelaFC[#Headers],0)),\"\")","v":"José"},{"$f":"SUMIF(TabelaEntradas[SKU],TabelaEstoque[[#This Row],[SKU]],TabelaEntradas[Quantidade])","v":0},{"$f":"SUMIF(TabelaSaidas[SKU],TabelaEstoque[[#This Row],[SKU]],TabelaSaidas[Quantidade])","v":0},{"$f":"SUMIF(TabelaPercas[SKU],TabelaEstoque[[#This Row],[SKU]],TabelaPercas[Quantidade])","v":0},{"$f":"TabelaEstoque[[#This Row],[Entradas]]-TabelaEstoque[[#This Row],[Saídas]]-TabelaEstoque[[#This Row],[Percas]]","v":0},50,55,{"$f":"IF(TabelaEstoque[[#This Row],[Mínimo]]=\"\",\"\",IF(TabelaEstoque[[#This Row],[Saldo]]<=TabelaEstoque[[#This Row],[Mínimo]],Ajustes!$H$5,IF(TabelaEstoque[[#This Row],[Saldo]]>=TabelaEstoque[[#This Row],[Máximo]],Ajustes!$H$7,Ajustes!$H$6)))","v":"Comprar Agora"}]
[{"v":10,"d":"000010"},"fio azul","Materia Prima","Caixa",2,{"$f":"IFERROR(VLOOKUP(TabelaEstoque[[#This Row],[Código Forcenedor]],TabelaFC[],MATCH(TabelaFC[[#Headers],[Nome]],TabelaFC[#Headers],0)),\"\")","v":"Roberto"},{"$f":"IFERROR(VLOOKUP(TabelaEstoque[[#This Row],[Código Forcenedor]],TabelaFC[],MATCH(TabelaFC[[#Headers],[Sobrenome]],TabelaFC[#Headers],0)),\"\")","v":"José"},{"$f":"SUMIF(TabelaEntradas[SKU],TabelaEstoque[[#This Row],[SKU]],TabelaEntradas[Quantidade])","v":0},{"$f":"SUMIF(TabelaSaidas[SKU],TabelaEstoque[[#This Row],[SKU]],TabelaSaidas[Quantidade])","v":0},{"$f":"SUMIF(TabelaPercas[SKU],TabelaEstoque[[#This Row],[SKU]],TabelaPercas[Quantidade])","v":0},{"$f":"TabelaEstoque[[#This Row],[Entradas]]-TabelaEstoque[[#This Row],[Saídas]]-TabelaEstoque[[#This Row],[Percas]]","v":0},50,55,{"$f":"IF(TabelaEstoque[[#This Row],[Mínimo]]=\"\",\"\",IF(TabelaEstoque[[#This Row],[Saldo]]<=TabelaEstoque[[#This Row],[Mínimo]],Ajustes!$H$5,IF(TabelaEstoque[[#This Row],[Saldo]]>=TabelaEstoque[[#This Row],[Máximo]],Ajustes!$H$7,Ajustes!$H$6)))","v":"Comprar Agora"}]
[{"v":11,"d":"000011"},"short","Produto Pronto","Peça",2,{"$f":"IFERROR(VLOOKUP(TabelaEstoque[[#This Row],[Código Forcenedor]],TabelaFC[],MATCH(TabelaFC[[#Headers],[Nome]],TabelaFC[#Headers],0)),\"\")","v":"Roberto"},{"$f":"IFERROR(VLOOKUP(TabelaEstoque[[#This Row],[Código Forcenedor]],TabelaFC[],MATCH(TabelaFC[[#Headers],[Sobrenome]],TabelaFC[#Headers],0)),\"\")","v":"José"},{"$f":"SUMIF(TabelaEntradas[SKU],TabelaEstoque[[#This Row],[SKU]],TabelaEntradas[Quantidade])","v":0},{"$f":"SUMIF(TabelaSaidas[SKU],TabelaEstoque[[#This Row],[SKU]],TabelaSaidas[Quantidade])","v":0},{"$f":"SUMIF(TabelaPercas[SKU],TabelaEstoque[[#This Row],[SKU]],TabelaPercas[Quantidade])","v":0},{"$f":"TabelaEstoque[[#This Row],[Entradas]]-TabelaEstoque[[#This Row],[Saídas]]-TabelaEstoque[[#This Row],[Percas]]","v":0},20,50,{"$f":"IF(TabelaEstoque[[#This Row],[Mínimo]]=\"\",\"\",IF(TabelaEstoque[[#This Row],[Saldo]]<=TabelaEstoque[[#This Row],[Mínimo]],Ajustes!$H$5,IF(TabelaEstoque[[#This Row],[Saldo]]>=TabelaEstoque[[#This Row],[Máximo]],Ajustes!$H$7,Ajustes!$H$6)))","v":"Comprar Agora"}]
[{"$nulls":5},{"$f":"IFERROR(VLOOKUP(TabelaEstoque[[#This Row],[Código Forcenedor]],TabelaFC[],MATCH(TabelaFC[[#Headers],[Nome]],TabelaFC[#Headers],0)),\"\")","v":""},{"$f":"IFERROR(VLOOKUP(TabelaEstoque[[#This Row],[Código Forcenedor]],TabelaFC[],MATCH(TabelaFC[[#Headers],[Sobrenome]],TabelaFC[#Headers],0)),\"\")","v":""},{"$f":"SUMIF(TabelaEntradas[SKU],TabelaEstoque[[#This Row],[SKU]],TabelaEntradas[Quantidade])","v":0},{"$f":"SUMIF(TabelaSaidas[SKU],TabelaEstoque[[#This Row],[SKU]],TabelaSaidas[Quantidade])","v":0},{"$f":"SUMIF(TabelaPercas[SKU],TabelaEstoque[[#This Row],[SKU]],TabelaPercas[Quantidade])","v":0},{"$f":"TabelaEstoque[[#This Row],[Entradas]]-TabelaEstoque[[#This Row],[Saídas]]-TabelaEstoque[[#This Row],[Percas]]","v":0},null,null,{"$f":"IF(TabelaEstoque[[#This Row],[Mínimo]]=\"\",\"\",IF(TabelaEstoque[[#This Row],[Saldo]]<=TabelaEstoque[[#This Row],[Mínimo]],Ajustes!$H$5,IF(TabelaEstoque[[#This Row],[Saldo]]>=TabelaEstoque[[#This Row],[Máximo]],Ajustes!$H$7,Ajustes!$H$6)))","v":""}]
[{"$nulls":5},{"$f":"IFERROR(VLOOKUP(TabelaEstoque[[#This Row],[Código Forcenedor]],TabelaFC[],MATCH(TabelaFC[[#Headers],[Nome]],TabelaFC[#Headers],0)),\"\")","v":""},{"$f":"IFERROR(VLOOKUP(TabelaEstoque[[#This Row],[Código Forcenedor]],TabelaFC[],MATCH(TabelaFC[[#Headers],[Sobrenome]],TabelaFC[#Headers],0)),\"\")","v":""},{"$f":"SUMIF(TabelaEntradas[SKU],TabelaEstoque[[#This Row],[SKU]],TabelaEntradas[Quantidade])","v":0},{"$f":"SUMIF(TabelaSaidas[SKU],TabelaEstoque[[#This Row],[SKU]],TabelaSaidas[Quantidade])","v":0},{"$f":"SUMIF(TabelaPercas[SKU],TabelaEstoque[[#This Row],[SKU]],TabelaPercas[Quantidade])","v":0},{"$f":"TabelaEstoque[[#This Row],[Entradas]]-TabelaEstoque[[#This Row],[Saídas]]-TabelaEstoque[[#This Row],[Percas]]","v":0},null,null,{"$f":"IF(TabelaEstoque[[#This Row],[Mínimo]]=\"\",\"\",IF(TabelaEstoque[[#This Row],[Saldo]]<=TabelaEstoque[[#This Row],[Mínimo]],Ajustes!$H$5,IF(TabelaEstoque[[#This Row],[Saldo]]>=TabelaEstoque[[#This Row],[Máximo]],Ajustes!$H$7,Ajustes!$H$6)))","v":""}]
[{"$nulls":5},{"$f":"IFERROR(VLOOKUP(TabelaEstoque[[#This Row],[Código Forcenedor]],TabelaFC[],MATCH(TabelaFC[[#Headers],[Nome]],TabelaFC[#Headers],0)),\"\")","v":""},{"$f":"IFERROR(VLOOKUP(TabelaEstoque[[#This Row],[Código Forcenedor]],TabelaFC[],MATCH(TabelaFC[[#Headers],[Sobrenome]],TabelaFC[#Headers],0)),\"\")","v":""},{"$f":"SUMIF(TabelaEntradas[SKU],TabelaEstoque[[#This Row],[SKU]],TabelaEntradas[Quantidade])","v":0},{"$f":"SUMIF(TabelaSaidas[SKU],TabelaEstoque[[#This Row],[SKU]],TabelaSaidas[Quantidade])","v":0},{"$f":"SUMIF(TabelaPercas[SKU],TabelaEstoque[[#This Row],[SKU]],TabelaPercas[Quantidade])","v":0},{"$f":"TabelaEstoque[[#This Row],[Entradas]]-TabelaEstoque[[#This Row],[Saídas]]-TabelaEstoque[[#This Row],[Percas]]","v":0},null,null,{"$f":"IF(TabelaEstoque[[#This Row],[Mínimo]]=\"\",\"\",IF(TabelaEstoque[[#This Row],[Saldo]]<=TabelaEstoque[[#This Row],[Mínimo]],Ajustes!$H$5,IF(TabelaEstoque[[#This Row],[Saldo]]>=TabelaEstoque[[#This Row],[Máximo]],Ajustes!$H$7,Ajustes!$H$6)))","v":""}]
[{"$nulls":5},{"$f":"IFERROR(VLOOKUP(TabelaEstoque[[#This Row],[Código Forcenedor]],TabelaFC[],MATCH(TabelaFC[[#Headers],[Nome]],TabelaFC[#Headers],0)),\"\")","v":""},{"$f":"IFERROR(VLOOKUP(TabelaEstoque[[#This Row],[Código Forcenedor]],TabelaFC[],MATCH(TabelaFC[[#Headers],[Sobrenome]],TabelaFC[#Headers],0)),\"\")","v":""},{"$f":"SUMIF(TabelaEntradas[SKU],TabelaEstoque[[#This Row],[SKU]],TabelaEntradas[Quantidade])","v":0},{"$f":"SUMIF(TabelaSaidas[SKU],TabelaEstoque[[#This Row],[SKU]],TabelaSaidas[Quantidade])","v":0},{"$f":"SUMIF(TabelaPercas[SKU],TabelaEstoque[[#This Row],[SKU]],TabelaPercas[Quantidade])","v":0},{"$f":"TabelaEstoque[[#This Row],[Entradas]]-TabelaEstoque[[#This Row],[Saídas]]-TabelaEstoque[[#This Row],[Percas]]","v":0},null,null,{"$f":"IF(TabelaEstoque[[#This Row],[Mínimo]]=\"\",\"\",IF(TabelaEstoque[[#This Row],[Saldo]]<=TabelaEstoque[[#This Row],[Mínimo]],Ajustes!$H$5,IF(TabelaEstoque[[#This Row],[Saldo]]>=TabelaEstoque[[#This Row],[Máximo]],Ajustes!$H$7,Ajustes!$H$6)))","v":""}]
[{"$nulls":5},{"$f":"IFERROR(VLOOKUP(TabelaEstoque[[#This Row],[Código Forcenedor]],TabelaFC[],MATCH(TabelaFC[[#Headers],[Nome]],TabelaFC[#Headers],0)),\"\")","v":""},{"$f":"IFERROR(VLOOKUP(TabelaEstoque[[#This Row],[Código Forcenedor]],TabelaFC[],MATCH(TabelaFC[[#Headers],[Sobrenome]],TabelaFC[#Headers],0)),\"\")","v":""},{"$f":"SUMIF(TabelaEntradas[SKU],TabelaEstoque[[#This Row],[SKU]],TabelaEntradas[Quantidade])","v":0},{"$f":"SUMIF(TabelaSaidas[SKU],TabelaEstoque[[#This Row],[SKU]],TabelaSaidas[Quantidade])","v":0},{"$f":"SUMIF(TabelaPercas[SKU],TabelaEstoque[[#This Row],[SKU]],TabelaPercas[Quantidade])","v":0},{"$f":"TabelaEstoque[[#This Row],[Entradas]]-TabelaEstoque[[#This Row],[Saídas]]-TabelaEstoque[[#This Row],[Percas]]","v":0},null,null,{"$f":"IF(TabelaEstoque[[#This Row],[Mínimo]]=\"\",\"\",IF(TabelaEstoque[[#This Row],[Saldo]]<=TabelaEstoque[[#This Row],[Mínimo]],Ajustes!$H$5,IF(TabelaEstoque[[#This Row],[Saldo]]>=TabelaEstoque[[#This Row],[Máximo]],Ajustes!$H$7,Ajustes!$H$6)))","v":""}]
[{"$nulls":5},{"$f":"IFERROR(VLOOKUP(TabelaEstoque[[#This Row],[Código Forcenedor]],TabelaFC[],MATCH(TabelaFC[[#Headers],[Nome]],TabelaFC[#Headers],0)),\"\")","v":""},{"$f":"IFERROR(VLOOKUP(TabelaEstoque[[#This Row],[Código Forcenedor]],TabelaFC[],MATCH(TabelaFC[[#Headers],[Sobrenome]],TabelaFC[#Headers],0)),\"\")","v":""},{"$f":"SUMIF(TabelaEntradas[SKU],TabelaEstoque[[#This Row],[SKU]],TabelaEntradas[Quantidade])","v":0},{"$f":"SUMIF(TabelaSaidas[SKU],TabelaEstoque[[#This Row],[SKU]],TabelaSaidas[Quantidade])","v":0},{"$f":"SUMIF(TabelaPercas[SKU],TabelaEstoque[[#This Row],[SKU]],TabelaPercas[Quantidade])","v":0},{"$f":"TabelaEstoque[[#This Row],[Entradas]]-TabelaEstoque[[#This Row],[Saídas]]-TabelaEstoque[[#This Row],[Percas]]","v":0},null,null,{"$f":"IF(TabelaEstoque[[#This Row],[Mínimo]]=\"\",\"\",IF(TabelaEstoque[[#This Row],[Saldo]]<=TabelaEstoque[[#This Row],[Mínimo]],Ajustes!$H$5,IF(TabelaEstoque[[#This Row],[Saldo]]>=TabelaEstoque[[#This Row],[Máximo]],Ajustes!$H$7,Ajustes!$H$6)))","v":""}]
[{"$nulls":5},{"$f":"IFERROR(VLOOKUP(TabelaEstoque[[#This Row],[Código Forcenedor]],TabelaFC[],MATCH(TabelaFC[[#Headers],[Nome]],TabelaFC[#Headers],0)),\"\")","v":""},{"$f":"IFERROR(VLOOKUP(TabelaEstoque[[#This Row],[Código Forcenedor]],TabelaFC[],MATCH(TabelaFC[[#Headers],[Sobrenome]],TabelaFC[#Headers],0)),\"\")","v":""},{"$f":"SUMIF(TabelaEntradas[SKU],TabelaEstoque[[#This Row],[SKU]],TabelaEntradas[Quantidade])","v":0},{"$f":"SUMIF(TabelaSaidas[SKU],TabelaEstoque[[#This Row],[SKU]],TabelaSaidas[Quantidade])","v":0},{"$f":"SUMIF(TabelaPercas[SKU],TabelaEstoque[[#This Row],[SKU]],TabelaPercas[Quantidade])","v":0},{"$f":"TabelaEstoque[[#This Row],[Entradas]]-TabelaEstoque[[#This Row],[Saídas]]-TabelaEstoque[[#This Row],[Percas]]","v":0},null,null,{"$f":"IF(TabelaEstoque[[#This Row],[Mínimo]]=\"\",\"\",IF(TabelaEstoque[[#This Row],[Saldo]]<=TabelaEstoque[[#This Row],[Mínimo]],Ajustes!$H$5,IF(TabelaEstoque[[#This Row],[Saldo]]>=TabelaEstoque[[#This Row],[Máximo]],Ajustes!$H$7,Ajustes!$H$6)))","v":""}]
[{"$nulls":5},{"$f":"IFERROR(VLOOKUP(TabelaEstoque[[#This Row],[Código Forcenedor]],TabelaFC[],MATCH(TabelaFC[[#Headers],[Nome]],TabelaFC[#Headers],0)),\"\")","v":""},{"$f":"IFERROR(VLOOKUP(TabelaEstoque[[#This Row],[Código Forcenedor]],TabelaFC[],MATCH(TabelaFC[[#Headers],[Sobrenome]],TabelaFC[#Headers],0)),\"\")","v":""},{"$f":"SUMIF(TabelaEntradas[SKU],TabelaEstoque[[#This Row],[SKU]],TabelaEntradas[Quantidade])","v":0},{"$f":"SUMIF(TabelaSaidas[SKU],TabelaEstoque[[#This Row],[SKU]],TabelaSaidas[Quantidade])","v":0},{"$f":"SUMIF(TabelaPercas[SKU],TabelaEstoque[[#This Row],[SKU]],TabelaPercas[Quantidade])","v":0},{"$f":"TabelaEstoque[[#This Row],[Entradas]]-TabelaEstoque[[#This Row],[Saídas]]-TabelaEstoque[[#This Row],[Percas]]","v":0},null,null,{"$f":"IF(TabelaEstoque[[#This Row],[Mínimo]]=\"\",\"\",IF(TabelaEstoque[[#This Row],[Saldo]]<=TabelaEstoque[[#This Row],[Mínimo]],Ajustes!$H$5,IF(TabelaEstoque[[#This Row],[Saldo]]>=TabelaEstoque[[#This Row],[Máximo]],Ajustes!$H$7,Ajustes!$H$6)))","v":""}]
[{"$nulls":5},{"$f":"IFERROR(VLOOKUP(TabelaEstoque[[#This Row],[Código Forcenedor]],TabelaFC[],MATCH(TabelaFC[[#Headers],[Nome]],TabelaFC[#Headers],0)),\"\")","v":""},{"$f":"IFERROR(VLOOKUP(TabelaEstoque[[#This Row],[Código Forcenedor]],TabelaFC[],MATCH(TabelaFC[[#Headers],[Sobrenome]],TabelaFC[#Headers],0)),\"\")","v":""},{"$f":"SUMIF(TabelaEntradas[SKU],TabelaEstoque[[#This Row],[SKU]],TabelaEntradas[Quantidade])","v":0},{"$f":"SUMIF(TabelaSaidas[SKU],TabelaEstoque[[#This Row],[SKU]],TabelaSaidas[Quantidade])","v":0},{"$f":"SUMIF(TabelaPercas[SKU],TabelaEstoque[[#This Row],[SKU]],TabelaPercas[Quantidade])","v":0},{"$f":"TabelaEstoque[[#This Row],[Entradas]]-TabelaEstoque[[#This Row],[Saídas]]-TabelaEstoque[[#This Row],[Percas]]","v":0},null,null,{"$f":"IF(TabelaEstoque[[#This Row],[Mínimo]]=\"\",\"\",IF(TabelaEstoque[[#This Row],[Saldo]]<=TabelaEstoque[[#This Row],[Mínimo]],Ajustes!$H$5,IF(TabelaEstoque[[#This Row],[Saldo]]>=TabelaEstoque[[#This Row],[Máximo]],Ajustes!$H$7,Ajustes!$H$6)))","v":""}]
[{"$nulls":5},{"$f":"IFERROR(VLOOKUP(TabelaEstoque[[#This Row],[Código Forcenedor]],TabelaFC[],MATCH(TabelaFC[[#Headers],[Nome]],TabelaFC[#Headers],0)),\"\")","v":""},{"$f":"IFERROR(VLOOKUP(TabelaEstoque[[#This Row],[Código Forcenedor]],TabelaFC[],MATCH(TabelaFC[[#Headers],[Sobrenome]],TabelaFC[#Headers],0)),\"\")","v":""},{"$f":"SUMIF(TabelaEntradas[SKU],TabelaEstoque[[#This Row],[SKU]],TabelaEntradas[Quantidade])","v":0},{"$f":"SUMIF(TabelaSaidas[SKU],TabelaEstoque[[#This Row],[SKU]],TabelaSaidas[Quantidade])","v":0},{"$f":"SUMIF(TabelaPercas[SKU],TabelaEstoque[[#This Row],[SKU]],TabelaPercas[Quantidade])","v":0},{"$f":"TabelaEstoque[[#This Row],[Entradas]]-TabelaEstoque[[#This Row],[Saídas]]-TabelaEstoque[[#This Row],[Percas]]","v":0},null,null,{"$f":"IF(TabelaEstoque[[#This Row],[Mínimo]]=\"\",\"\",IF(TabelaEstoque[[#This Row],[Saldo]]<=TabelaEstoque[[#This Row],[Mínimo]],Ajustes!$H$5,IF(TabelaEstoque[[#This Row],[Saldo]]>=TabelaEstoque[[#This Row],[Máximo]],Ajustes!$H$7,Ajustes!$H$6)))","v":""}]
[{"$nulls":5},{"$f":"IFERROR(VLOOKUP(TabelaEstoque[[#This Row],[Código Forcenedor]],TabelaFC[],MATCH(TabelaFC[[#Headers],[Nome]],TabelaFC[#Headers],0)),\"\")","v":""},{"$f":"IFERROR(VLOOKUP(TabelaEstoque[[#This Row],[Código Forcenedor]],TabelaFC[],MATCH(TabelaFC[[#Headers],[Sobrenome]],TabelaFC[#Headers],0)),\"\")","v":""},{"$f":"SUMIF(TabelaEntradas[SKU],TabelaEstoque[[#This Row],[SKU]],TabelaEntradas[Quantidade])","v":0},{"$f":"SUMIF(TabelaSaidas[SKU],TabelaEstoque[[#This Row],[SKU]],TabelaSaidas[Quantidade])","v":0},{"$f":"SUMIF(TabelaPercas[SKU],TabelaEstoque[[#This Row],[SKU]],TabelaPercas[Quantidade])","v":0},{"$f":"TabelaEstoque[[#This Row],[Entradas]]-TabelaEstoque[[#This Row],[Saídas]]-TabelaEstoque[[#This Row],[Percas]]","v":0},null,null,{"$f":"IF(TabelaEstoque[[#This Row],[Mínimo]]=\"\",\"\",IF(TabelaEstoque[[#This Row],[Saldo]]<=TabelaEstoque[[#This Row],[Mínimo]],Ajustes!$H$5,IF(TabelaEstoque[[#This Row],[Saldo]]>=TabelaEstoque[[#This Row],[Máximo]],Ajustes!$H$7,Ajustes!$H$6)))","v":""}]
[{"$nulls":5},{"$f":"IFERROR(VLOOKUP(TabelaEstoque[[#This Row],[Código Forcenedor]],TabelaFC[],MATCH(TabelaFC[[#Headers],[Nome]],TabelaFC[#Headers],0)),\"\")","v":""},{"$f":"IFERROR(VLOOKUP(TabelaEstoque[[#This Row],[Código Forcenedor]],TabelaFC[],MATCH(TabelaFC[[#Headers],[Sobrenome]],TabelaFC[#Headers],0)),\"\")","v":""},{"$f":"SUMIF(TabelaEntradas[SKU],TabelaEstoque[[#This Row],[SKU]],TabelaEntradas[Quantidade])","v":0},{"$f":"SUMIF(TabelaSaidas[SKU],TabelaEstoque[[#This Row],[SKU]],TabelaSaidas[Quantidade])","v":0},{"$f":"SUMIF(TabelaPercas[SKU],TabelaEstoque[[#This Row],[SKU]],TabelaPercas[Quantidade])","v":0},{"$f":"TabelaEstoque[[#This Row],[Entradas]]-TabelaEstoque[[#This Row],[Saídas]]-TabelaEstoque[[#This Row],[Percas]]","v":0},null,null,{"$f":"IF(TabelaEstoque[[#This Row],[Mínimo]]=\"\",\"\",IF(TabelaEstoque[[#This Row],[Saldo]]<=TabelaEstoque[[#This Row],[Mínimo]],Ajustes!$H$5,IF(TabelaEstoque[[#This Row],[Saldo]]>=TabelaEstoque[[#This Row],[Máximo]],Ajustes!$H$7,Ajustes!$H$6)))","v":""}]
[{"$nulls":5},{"$f":"IFERROR(VLOOKUP(TabelaEstoque[[#This Row],[Código Forcenedor]],TabelaFC[],MATCH(TabelaFC[[#Headers],[Nome]],TabelaFC[#Headers],0)),\"\")","v":""},{"$f":"IFERROR(VLOOKUP(TabelaEstoque[[#This Row],[Código Forcenedor]],TabelaFC[],MATCH(TabelaFC[[#Headers],[Sobrenome]],TabelaFC[#Headers],0)),\"\")","v":""},{"$f":"SUMIF(TabelaEntradas[SKU],TabelaEstoque[[#This Row],[SKU]],TabelaEntradas[Quantidade])","v":0},{"$f":"SUMIF(TabelaSaidas[SKU],TabelaEstoque[[#This Row],[SKU]],TabelaSaidas[Quantidade])","v":0},{"$f":"SUMIF(TabelaPercas[SKU],TabelaEstoque[[#This Row],[SKU]],TabelaPercas[Quantidade])","v":0},{"$f":"TabelaEstoque[[#This Row],[Entradas]]-TabelaEstoque[[#This Row],[Saídas]]-TabelaEstoque[[#This Row],[Percas]]","v":0},null,null,{"$f":"IF(TabelaEstoque[[#This Row],[Mínimo]]=\"\",\"\",IF(TabelaEstoque[[#This Row],[Saldo]]<=TabelaEstoque[[#This Row],[Mínimo]],Ajustes!$H$5,IF(TabelaEstoque[[#This Row],[Saldo]]>=TabelaEstoque[[#This Row],[Máximo]],Ajustes!$H$7,Ajustes!$H$6)))","v":""}]
[{"$nulls":5},{"$f":"IFERROR(VLOOKUP(TabelaEstoque[[#This Row],[Código Forcenedor]],TabelaFC[],MATCH(TabelaFC[[#Headers],[Nome]],TabelaFC[#Headers],0)),\"\")","v":""},{"$f":"IFERROR(VLOOKUP(TabelaEstoque[[#This Row],[Código Forcenedor]],TabelaFC[],MATCH(TabelaFC[[#Headers],[Sobrenome]],TabelaFC[#Headers],0)),\"\")","v":""},{"$f":"SUMIF(TabelaEntradas[SKU],TabelaEstoque[[#This Row],[SKU]],TabelaEntradas[Quantidade])","v":0},{"$f":"SUMIF(TabelaSaidas[SKU],TabelaEstoque[[#This Row],[SKU]],TabelaSaidas[Quantidade])","v":0},{"$f":"SUMIF(TabelaPercas[SKU],TabelaEstoque[[#This Row],[SKU]],TabelaPercas[Quantidade])","v":0},{"$f":"TabelaEstoque[[#This Row],[Entradas]]-TabelaEstoque[[#This Row],[Saídas]]-TabelaEstoque[[#This Row],[Percas]]","v":0},null,null,{"$f":"IF(TabelaEstoque[[#This Row],[Mínimo]]=\"\",\"\",IF(TabelaEstoque[[#This Row],[Saldo]]<=TabelaEstoque[[#This Row],[Mínimo]],Ajustes!$H$5,IF(TabelaEstoque[[#This Row],[Saldo]]>=TabelaEstoque[[#This Row],[Máximo]],Ajustes!$H$7,Ajustes!$H$6)))","v":""}]
[{"$nulls":5},{"$f":"IFERROR(VLOOKUP(TabelaEstoque[[#This Row],[Código Forcenedor]],TabelaFC[],MATCH(TabelaFC[[#Headers],[Nome]],TabelaFC[#Headers],0)),\"\")","v":""},{"$f":"IFERROR(VLOOKUP(TabelaEstoque[[#This Row],[Código Forcenedor]],TabelaFC[],MATCH(TabelaFC[[#Headers],[Sobrenome]],TabelaFC[#Headers],0)),\"\")","v":""},{"$f":"SUMIF(TabelaEntradas[SKU],TabelaEstoque[[#This Row],[SKU]],TabelaEntradas[Quantidade])","v":0},{"$f":"SUMIF(TabelaSaidas[SKU],TabelaEstoque[[#This Row],[SKU]],TabelaSaidas[Quantidade])","v":0},{"$f":"SUMIF(TabelaPercas[SKU],TabelaEstoque[[#This Row],[SKU]],TabelaPercas[Quantidade])","v":0},{"$f":"TabelaEstoque[[#This Row],[Entradas]]-TabelaEstoque[[#This Row],[Saídas]]-TabelaEstoque[[#This Row],[Percas]]","v":0},null,null,{"$f":"IF(TabelaEstoque[[#This Row],[Mínimo]]=\"\",\"\",IF(TabelaEstoque[[#This Row],[Saldo]]<=TabelaEstoque[[#This Row],[Mínimo]],Ajustes!$H$5,IF(TabelaEstoque[[#This Row],[Saldo]]>=TabelaEstoque[[#This Row],[Máximo]],Ajustes!$H$7,Ajustes!$H$6)))","v":""}]
[{"$nulls":5},{"$f":"IFERROR(VLOOKUP(TabelaEstoque[[#This Row],[Código Forcenedor]],TabelaFC[],MATCH(TabelaFC[[#Headers],[Nome]],TabelaFC[#Headers],0)),\"\")","v":""},{"$f":"IFERROR(VLOOKUP(TabelaEstoque[[#This Row],[Código Forcenedor]],TabelaFC[],MATCH(TabelaFC[[#Headers],[Sobrenome]],TabelaFC[#Headers],0)),\"\")","v":""},{"$f":"SUMIF(TabelaEntradas[SKU],TabelaEstoque[[#This Row],[SKU]],TabelaEntradas[Quantidade])","v":0},{"$f":"SUMIF(TabelaSaidas[SKU],TabelaEstoque[[#This Row],[SKU]],TabelaSaidas[Quantidade])","v":0},{"$f":"SUMIF(TabelaPercas[SKU],TabelaEstoque[[#This Row],[SKU]],TabelaPercas[Quantidade])","v":0},{"$f":"TabelaEstoque[[#This Row],[Entradas]]-TabelaEstoque[[#This Row],[Saídas]]-TabelaEstoque[[#This Row],[Percas]]","v":0},null,null,{"$f":"IF(TabelaEstoque[[#This Row],[Mínimo]]=\"\",\"\",IF(TabelaEstoque[[#This Row],[Saldo]]<=TabelaEstoque[[#This Row],[Mínimo]],Ajustes!$H$5,IF(TabelaEstoque[[#This Row],[Saldo]]>=TabelaEstoque[[#This Row],[Máximo]],Ajustes!$H$7,Ajustes!$H$6)))","v":""}]
[{"$nulls":5},{"$f":"IFERROR(VLOOKUP(TabelaEstoque[[#This Row],[Código Forcenedor]],TabelaFC[],MATCH(TabelaFC[[#Headers],[Nome]],TabelaFC[#Headers],0)),\"\")","v":""},{"$f":"IFERROR(VLOOKUP(TabelaEstoque[[#This Row],[Código Forcenedor]],TabelaFC[],MATCH(TabelaFC[[#Headers],[Sobrenome]],TabelaFC[#Headers],0)),\"\")","v":""},{"$f":"SUMIF(TabelaEntradas[SKU],TabelaEstoque[[#This Row],[SKU]],TabelaEntradas[Quantidade])","v":0},{"$f":"SUMIF(TabelaSaidas[SKU],TabelaEstoque[[#This Row],[SKU]],TabelaSaidas[Quantidade])","v":0},{"$f":"SUMIF(TabelaPercas[SKU],TabelaEstoque[[#This Row],[SKU]],TabelaPercas[Quantidade])","v":0},{"$f":"TabelaEstoque[[#This Row],[Entradas]]-TabelaEstoque[[#This Row],[Saídas]]-TabelaEstoque[[#This Row],[Percas]]","v":0},null,null,{"$f":"IF(TabelaEstoque[[#This Row],[Mínimo]]=\"\",\"\",IF(TabelaEstoque[[#This Row],[Saldo]]<=TabelaEstoque[[#This Row],[Mínimo]],Ajustes!$H$5,IF(TabelaEstoque[[#This Row],[Saldo]]>=TabelaEstoque[[#This Row],[Máximo]],Ajustes!$H$7,Ajustes!$H$6)))","v":""}]
[{"$nulls":5},{"$f":"IFERROR(VLOOKUP(TabelaEstoque[[#This Row],[Código Forcenedor]],TabelaFC[],MATCH(TabelaFC[[#Headers],[Nome]],TabelaFC[#Headers],0)),\"\")","v":""},{"$f":"IFERROR(VLOOKUP(TabelaEstoque[[#This Row],[Código Forcenedor]],TabelaFC[],MATCH(TabelaFC[[#Headers],[Sobrenome]],TabelaFC[#Headers],0)),\"\")","v":""},{"$f":"SUMIF(TabelaEntradas[SKU],TabelaEstoque[[#This Row],[SKU]],TabelaEntradas[Quantidade])","v":0},{"$f":"SUMIF(TabelaSaidas[SKU],TabelaEstoque[[#This Row],[SKU]],TabelaSaidas[Quantidade])","v":0},{"$f":"SUMIF(TabelaPercas[SKU],TabelaEstoque[[#This Row],[SKU]],TabelaPercas[Quantidade])","v":0},{"$f":"TabelaEstoque[[#This Row],[Entradas]]-TabelaEstoque[[#This Row],[Saídas]]-TabelaEstoque[[#This Row],[Percas]]","v":0},null,null,{"$f":"IF(TabelaEstoque[[#This Row],[Mínimo]]=\"\",\"\",IF(TabelaEstoque[[#This Row],[Saldo]]<=TabelaEstoque[[#This Row],[Mínimo]],Ajustes!$H$5,IF(TabelaEstoque[[#This Row],[Saldo]]>=TabelaEstoque[[#This Row],[Máximo]],Ajustes!$H$7,Ajustes!$H$6)))","v":""}]
[{"$nulls":5},{"$f":"IFERROR(VLOOKUP(TabelaEstoque[[#This Row],[Código Forcenedor]],TabelaFC[],MATCH(TabelaFC[[#Headers],[Nome]],TabelaFC[#Headers],0)),\"\")","v":""},{"$f":"IFERROR(VLOOKUP(TabelaEstoque[[#This Row],[Código Forcenedor]],TabelaFC[],MATCH(TabelaFC[[#Headers],[Sobrenome]],TabelaFC[#Headers],0)),\"\")","v":""},{"$f":"SUMIF(TabelaEntradas[SKU],TabelaEstoque[[#This Row],[SKU]],TabelaEntradas[Quantidade])","v":0},{"$f":"SUMIF(TabelaSaidas[SKU],TabelaEstoque[[#This Row],[SKU]],TabelaSaidas[Quantidade])","v":0},{"$f":"SUMIF(TabelaPercas[SKU],TabelaEstoque[[#This Row],[SKU]],TabelaPercas[Quantidade])","v":0},{"$f":"TabelaEstoque[[#This Row],[Entradas]]-TabelaEstoque[[#This Row],[Saídas]]-TabelaEstoque[[#This Row],[Percas]]","v":0},null,null,{"$f":"IF(TabelaEstoque[[#This Row],[Mínimo]]=\"\",\"\",IF(TabelaEstoque[[#This Row],[Saldo]]<=TabelaEstoque[[#This Row],[Mínimo]],Ajustes!$H$5,IF(TabelaEstoque[[#This Row],[Saldo]]>=TabelaEstoque[[#This Row],[Máximo]],Ajustes!$H$7,Ajustes!$H$6)))","v":""}]
[{"$nulls":5},{"$f":"IFERROR(VLOOKUP(TabelaEstoque[[#This Row],[Código Forcenedor]],TabelaFC[],MATCH(TabelaFC[[#Headers],[Nome]],TabelaFC[#Headers],0)),\"\")","v":""},{"$f":"IFERROR(VLOOKUP(TabelaEstoque[[#This Row],[Código Forcenedor]],TabelaFC[],MATCH(TabelaFC[[#Headers],[Sobrenome]],TabelaFC[#Headers],0)),\"\")","v":""},{"$f":"SUMIF(TabelaEntradas[SKU],TabelaEstoque[[#This Row],[SKU]],TabelaEntradas[Quantidade])","v":0},{"$f":"SUMIF(TabelaSaidas[SKU],TabelaEstoque[[#This Row],[SKU]],TabelaSaidas[Quantidade])","v":0},{"$f":"SUMIF(TabelaPercas[SKU],TabelaEstoque[[#This Row],[SKU]],TabelaPercas[Quantidade])","v":0},{"$f":"TabelaEstoque[[#This Row],[Entradas]]-TabelaEstoque[[#This Row],[Saídas]]-TabelaEstoque[[#This Row],[Percas]]","v":0},null,null,{"$f":"IF(TabelaEstoque[[#This Row],[Mínimo]]=\"\",\"\",IF(TabelaEstoque[[#This Row],[Saldo]]<=TabelaEstoque[[#This Row],[Mínimo]],Ajustes!$H$5,IF(TabelaEstoque[[#This Row],[Saldo]]>=TabelaEstoque[[#This Row],[Máximo]],Ajustes!$H$7,Ajustes!$H$6)))","v":""}]
[{"$nulls":5},{"$f":"IFERROR(VLOOKUP(TabelaEstoque[[#This Row],[Código Forcenedor]],TabelaFC[],MATCH(TabelaFC[[#Headers],[Nome]],TabelaFC[#Headers],0)),\"\")","v":""},{"$f":"IFERROR(VLOOKUP(TabelaEstoque[[#This Row],[Código Forcenedor]],TabelaFC[],MATCH(TabelaFC[[#Headers],[Sobrenome]],TabelaFC[#Headers],0)),\"\")","v":""},{"$f":"SUMIF(TabelaEntradas[SKU],TabelaEstoque[[#This Row],[SKU]],TabelaEntradas[Quantidade])","v":0},{"$f":"SUMIF(TabelaSaidas[SKU],TabelaEstoque[[#This Row],[SKU]],TabelaSaidas[Quantidade])","v":0},{"$f":"SUMIF(TabelaPercas[SKU],TabelaEstoque[[#This Row],[SKU]],TabelaPercas[Quantidade])","v":0},{"$f":"TabelaEstoque[[#This Row],[Entradas]]-TabelaEstoque[[#This Row],[Saídas]]-TabelaEstoque[[#This Row],[Percas]]","v":0},null,null,{"$f":"IF(TabelaEstoque[[#This Row],[Mínimo]]=\"\",\"\",IF(TabelaEstoque[[#This Row],[Saldo]]<=TabelaEstoque[[#This Row],[Mínimo]],Ajustes!$H$5,IF(TabelaEstoque[[#This Row],[Saldo]]>=TabelaEstoque[[#This Row],[Máximo]],Ajustes!$H$7,Ajustes!$H$6)))","v":""}]
[{"$nulls":5},{"$f":"IFERROR(VLOOKUP(TabelaEstoque[[#This Row],[Código Forcenedor]],TabelaFC[],MATCH(TabelaFC[[#Headers],[Nome]],TabelaFC[#Headers],0)),\"\")","v":""},{"$f":"IFERROR(VLOOKUP(TabelaEstoque[[#This Row],[Código Forcenedor]],TabelaFC[],MATCH(TabelaFC[[#Headers],[Sobrenome]],TabelaFC[#Headers],0)),\"\")","v":""},{"$f":"SUMIF(TabelaEntradas[SKU],TabelaEstoque[[#This Row],[SKU]],TabelaEntradas[Quantidade])","v":0},{"$f":"SUMIF(TabelaSaidas[SKU],TabelaEstoque[[#This Row],[SKU]],TabelaSaidas[Quantidade])","v":0},{"$f":"SUMIF(TabelaPercas[SKU],TabelaEstoque[[#This Row],[SKU]],TabelaPercas[Quantidade])","v":0},{"$f":"TabelaEstoque[[#This Row],[Entradas]]-TabelaEstoque[[#This Row],[Saídas]]-TabelaEstoque[[#This Row],[Percas]]","v":0},null,null,{"$f":"IF(TabelaEstoque[[#This Row],[Mínimo]]=\"\",\"\",IF(TabelaEstoque[[#This Row],[Saldo]]<=TabelaEstoque[[#This Row],[Mínimo]],Ajustes!$H$5,IF(TabelaEstoque[[#This Row],[Saldo]]>=TabelaEstoque[[#This Row],[Máximo]],Ajustes!$H$7,Ajustes!$H$6)))","v":""}]
[{"$nulls":5},{"$f":"IFERROR(VLOOKUP(TabelaEstoque[[#This Row],[Código Forcenedor]],TabelaFC[],MATCH(TabelaFC[[#Headers],[Nome]],TabelaFC[#Headers],0)),\"\")","v":""},{"$f":"IFERROR(VLOOKUP(TabelaEstoque[[#This Row],[Código Forcenedor]],TabelaFC[],MATCH(TabelaFC[[#Headers],[Sobrenome]],TabelaFC[#Headers],0)),\"\")","v":""},{"$f":"SUMIF(TabelaEntradas[SKU],TabelaEstoque[[#This Row],[SKU]],TabelaEntradas[Quantidade])","v":0},{"$f":"SUMIF(TabelaSaidas[SKU],TabelaEstoque[[#This Row],[SKU]],TabelaSaidas[Quantidade])","v":0},{"$f":"SUMIF(TabelaPercas[SKU],TabelaEstoque[[#This Row],[SKU]],TabelaPercas[Quantidade])","v":0},{"$f":"TabelaEstoque[[#This Row],[Entradas]]-TabelaEstoque[[#This Row],[Saídas]]-TabelaEstoque[[#This Row],[Percas]]","v":0},null,null,{"$f":"IF(TabelaEstoque[[#This Row],[Mínimo]]=\"\",\"\",IF(TabelaEstoque[[#This Row],[Saldo]]<=TabelaEstoque[[#This Row],[Mínimo]],Ajustes!$H$5,IF(TabelaEstoque[[#This Row],[Saldo]]>=TabelaEstoque[[#This Row],[Máximo]],Ajustes!$H$7,Ajustes!$H$6)))","v":""}]
[{"$nulls":5},{"$f":"IFERROR(VLOOKUP(TabelaEstoque[[#This Row],[Código Forcenedor]],TabelaFC[],MATCH(TabelaFC[[#Headers],[Nome]],TabelaFC[#Headers],0)),\"\")","v":""},{"$f":"IFERROR(VLOOKUP(TabelaEstoque[[#This Row],[Código Forcenedor]],TabelaFC[],MATCH(TabelaFC[[#Headers],[Sobrenome]],TabelaFC[#Headers],0)),\"\")","v":""},{"$f":"SUMIF(TabelaEntradas[SKU],TabelaEstoque[[#This Row],[SKU]],TabelaEntradas[Quantidade])","v":0},{"$f":"SUMIF(TabelaSaidas[SKU],TabelaEstoque[[#This Row],[SKU]],TabelaSaidas[Quantidade])","v":0},{"$f":"SUMIF(TabelaPercas[SKU],TabelaEstoque[[#This Row],[SKU]],TabelaPercas[Quantidade])","v":0},{"$f":"TabelaEstoque[[#This Row],[Entradas]]-TabelaEstoque[[#This Row],[Saídas]]-TabelaEstoque[[#This Row],[Percas]]","v":0},null,null,{"$f":"IF(TabelaEstoque[[#This Row],[Mínimo]]=\"\",\"\",IF(TabelaEstoque[[#This Row],[Saldo]]<=TabelaEstoque[[#This Row],[Mínimo]],Ajustes!$H$5,IF(TabelaEstoque[[#This Row],[Saldo]]>=TabelaEstoque[[#This Row],[Máximo]],Ajustes!$H$7,Ajustes!$H$6)))","v":""}]
[{"$nulls":5},{"$f":"IFERROR(VLOOKUP(TabelaEstoque[[#This Row],[Código Forcenedor]],TabelaFC[],MATCH(TabelaFC[[#Headers],[Nome]],TabelaFC[#Headers],0)),\"\")","v":""},{"$f":"IFERROR(VLOOKUP(TabelaEstoque[[#This Row],[Código Forcenedor]],TabelaFC[],MATCH(TabelaFC[[#Headers],[Sobrenome]],TabelaFC[#Headers],0)),\"\")","v":""},{"$f":"SUMIF(TabelaEntradas[SKU],TabelaEstoque[[#This Row],[SKU]],TabelaEntradas[Quantidade])","v":0},{"$f":"SUMIF(TabelaSaidas[SKU],TabelaEstoque[[#This Row],[SKU]],TabelaSaidas[Quantidade])","v":0},{"$f":"SUMIF(TabelaPercas[SKU],TabelaEstoque[[#This Row],[SKU]],TabelaPercas[Quantidade])","v":0},{"$f":"TabelaEstoque[[#This Row],[Entradas]]-TabelaEstoque[[#This Row],[Saídas]]-TabelaEstoque[[#This Row],[Percas]]","v":0},null,null,{"$f":"IF(TabelaEstoque[[#This Row],[Mínimo]]=\"\",\"\",IF(TabelaEstoque[[#This Row],[Saldo]]<=TabelaEstoque[[#This Row],[Mínimo]],Ajustes!$H$5,IF(TabelaEstoque[[#This Row],[Saldo]]>=TabelaEstoque[[#This Row],[Máximo]],Ajustes!$H$7,Ajustes!$H$6)))","v":""}]
[{"$nulls":5},{"$f":"IFERROR(VLOOKUP(TabelaEstoque[[#This Row],[Código Forcenedor]],TabelaFC[],MATCH(TabelaFC[[#Headers],[Nome]],TabelaFC[#Headers],0)),\"\")","v":""},{"$f":"IFERROR(VLOOKUP(TabelaEstoque[[#This Row],[Código Forcenedor]],TabelaFC[],MATCH(TabelaFC[[#Headers],[Sobrenome]],TabelaFC[#Headers],0)),\"\")","v":""},{"$f":"SUMIF(TabelaEntradas[SKU],TabelaEstoque[[#This Row],[SKU]],TabelaEntradas[Quantidade])","v":0},{"$f":"SUMIF(TabelaSaidas[SKU],TabelaEstoque[[#This Row],[SKU]],TabelaSaidas[Quantidade])","v":0},{"$f":"SUMIF(TabelaPercas[SKU],TabelaEstoque[[#This Row],[SKU]],TabelaPercas[Quantidade])","v":0},{"$f":"TabelaEstoque[[#This Row],[Entradas]]-TabelaEstoque[[#This Row],[Saídas]]-TabelaEstoque[[#This Row],[Percas]]","v":0},null,null,{"$f":"IF(TabelaEstoque[[#This Row],[Mínimo]]=\"\",\"\",IF(TabelaEstoque[[#This Row],[Saldo]]<=TabelaEstoque[[#This Row],[Mínimo]],Ajustes!$H$5,IF(TabelaEstoque[[#This Row],[Saldo]]>=TabelaEstoque[[#This Row],[Máximo]],Ajustes!$H$7,Ajustes!$H$6)))","v":""}]
[{"$nulls":5},{"$f":"IFERROR(VLOOKUP(TabelaEstoque[[#This Row],[Código Forcenedor]],TabelaFC[],MATCH(TabelaFC[[#Headers],[Nome]],TabelaFC[#Headers],0)),\"\")","v":""},{"$f":"IFERROR(VLOOKUP(TabelaEstoque[[#This Row],[Código Forcenedor]],TabelaFC[],MATCH(TabelaFC[[#Headers],[Sobrenome]],TabelaFC[#Headers],0)),\"\")","v":""},{"$f":"SUMIF(TabelaEntradas[SKU],TabelaEstoque[[#This Row],[SKU]],TabelaEntradas[Quantidade])","v":0},{"$f":"SUMIF(TabelaSaidas[SKU],TabelaEstoque[[#This Row],[SKU]],TabelaSaidas[Quantidade])","v":0},{"$f":"SUMIF(TabelaPercas[SKU],TabelaEstoque[[#This Row],[SKU]],TabelaPercas[Quantidade])","v":0},{"$f":"TabelaEstoque[[#This Row],[Entradas]]-TabelaEstoque[[#This Row],[Saídas]]-TabelaEstoque[[#This Row],[Percas]]","v":0},null,null,{"$f":"IF(TabelaEstoque[[#This Row],[Mínimo]]=\"\",\"\",IF(TabelaEstoque[[#This Row],[Saldo]]<=TabelaEstoque[[#This Row],[Mínimo]],Ajustes!$H$5,IF(TabelaEstoque[[#This Row],[Saldo]]>=TabelaEstoque[[#This Row],[Máximo]],Ajustes!$H$7,Ajustes!$H$6)))","v":""}]
[{"$nulls":5},{"$f":"IFERROR(VLOOKUP(TabelaEstoque[[#This Row],[Código Forcenedor]],TabelaFC[],MATCH(TabelaFC[[#Headers],[Nome]],TabelaFC[#Headers],0)),\"\")","v":""},{"$f":"IFERROR(VLOOKUP(TabelaEstoque[[#This Row],[Código Forcenedor]],TabelaFC[],MATCH(TabelaFC[[#Headers],[Sobrenome]],TabelaFC[#Headers],0)),\"\")","v":""},{"$f":"SUMIF(TabelaEntradas[SKU],TabelaEstoque[[#This Row],[SKU]],TabelaEntradas[Quantidade])","v":0},{"$f":"SUMIF(TabelaSaidas[SKU],TabelaEstoque[[#This Row],[SKU]],TabelaSaidas[Quantidade])","v":0},{"$f":"SUMIF(TabelaPercas[SKU],TabelaEstoque[[#This Row],[SKU]],TabelaPercas[Quantidade])","v":0},{"$f":"TabelaEstoque[[#This Row],[Entradas]]-TabelaEstoque[[#This Row],[Saídas]]-TabelaEstoque[[#This Row],[Percas]]","v":0},null,null,{"$f":"IF(TabelaEstoque[[#This Row],[Mínimo]]=\"\",\"\",IF(TabelaEstoque[[#This Row],[Saldo]]<=TabelaEstoque[[#This Row],[Mínimo]],Ajustes!$H$5,IF(TabelaEstoque[[#This Row],[Saldo]]>=TabelaEstoque[[#This Row],[Máximo]],Ajustes!$H$7,Ajustes!$H$6)))","v":""}]
[{"$nulls":5},{"$f":"IFERROR(VLOOKUP(TabelaEstoque[[#This Row],[Código Forcenedor]],TabelaFC[],MATCH(TabelaFC[[#Headers],[Nome]],TabelaFC[#Headers],0)),\"\")","v":""},{"$f":"IFERROR(VLOOKUP(TabelaEstoque[[#This Row],[Código Forcenedor]],TabelaFC[],MATCH(TabelaFC[[#Headers],[Sobrenome]],TabelaFC[#Headers],0)),\"\")","v":""},{"$f":"SUMIF(TabelaEntradas[SKU],TabelaEstoque[[#This Row],[SKU]],TabelaEntradas[Quantidade])","v":0},{"$f":"SUMIF(TabelaSaidas[SKU],TabelaEstoque[[#This Row],[SKU]],TabelaSaidas[Quantidade])","v":0},{"$f":"SUMIF(TabelaPercas[SKU],TabelaEstoque[[#This Row],[SKU]],TabelaPercas[Quantidade])","v":0},{"$f":"TabelaEstoque[[#This Row],[Entradas]]-TabelaEstoque[[#This Row],[Saídas]]-TabelaEstoque[[#This Row],[Percas]]","v":0},null,null,{"$f":"IF(TabelaEstoque[[#This Row],[Mínimo]]=\"\",\"\",IF(TabelaEstoque[[#This Row],[Saldo]]<=TabelaEstoque[[#This Row],[Mínimo]],Ajustes!$H$5,IF(TabelaEstoque[[#This Row],[Saldo]]>=TabelaEstoque[[#This Row],[Máximo]],Ajustes!$H$7,Ajustes!$H$6)))","v":""}]
[{"$nulls":5},{"$f":"IFERROR(VLOOKUP(TabelaEstoque[[#This Row],[Código Forcenedor]],TabelaFC[],MATCH(TabelaFC[[#Headers],[Nome]],TabelaFC[#Headers],0)),\"\")","v":""},{"$f":"IFERROR(VLOOKUP(TabelaEstoque[[#This Row],[Código Forcenedor]],TabelaFC[],MATCH(TabelaFC[[#Headers],[Sobrenome]],TabelaFC[#Headers],0)),\"\")","v":""},{"$f":"SUMIF(TabelaEntradas[SKU],TabelaEstoque[[#This Row],[SKU]],TabelaEntradas[Quantidade])","v":0},{"$f":"SUMIF(TabelaSaidas[SKU],TabelaEstoque[[#This Row],[SKU]],TabelaSaidas[Quantidade])","v":0},{"$f":"SUMIF(TabelaPercas[SKU],TabelaEstoque[[#This Row],[SKU]],TabelaPercas[Quantidade])","v":0},{"$f":"TabelaEstoque[[#This Row],[Entradas]]-TabelaEstoque[[#This Row],[Saídas]]-TabelaEstoque[[#This Row],[Percas]]","v":0},null,null,{"$f":"IF(TabelaEstoque[[#This Row],[Mínimo]]=\"\",\"\",IF(TabelaEstoque[[#This Row],[Saldo]]<=TabelaEstoque[[#This Row],[Mínimo]],Ajustes!$H$5,IF(TabelaEstoque[[#This Row],[Saldo]]>=TabelaEstoque[[#This Row],[Máximo]],Ajustes!$H$7,Ajustes!$H$6)))","v":""}]
[{"$nulls":5},{"$f":"IFERROR(VLOOKUP(TabelaEstoque[[#This Row],[Código Forcenedor]],TabelaFC[],MATCH(TabelaFC[[#Headers],[Nome]],TabelaFC[#Headers],0)),\"\")","v":""},{"$f":"IFERROR(VLOOKUP(TabelaEstoque[[#This Row],[Código Forcenedor]],TabelaFC[],MATCH(TabelaFC[[#Headers],[Sobrenome]],TabelaFC[#Headers],0)),\"\")","v":""},{"$f":"SUMIF(TabelaEntradas[SKU],TabelaEstoque[[#This Row],[SKU]],TabelaEntradas[Quantidade])","v":0},{"$f":"SUMIF(TabelaSaidas[SKU],TabelaEstoque[[#This Row],[SKU]],TabelaSaidas[Quantidade])","v":0},{"$f":"SUMIF(TabelaPercas[SKU],TabelaEstoque[[#This Row],[SKU]],TabelaPercas[Quantidade])","v":0},{"$f":"TabelaEstoque[[#This Row],[Entradas]]-TabelaEstoque[[#This Row],[Saídas]]-TabelaEstoque[[#This Row],[Percas]]","v":0},null,null,{"$f":"IF(TabelaEstoque[[#This Row],[Mínimo]]=\"\",\"\",IF(TabelaEstoque[[#This Row],[Saldo]]<=TabelaEstoque[[#This Row],[Mínimo]],Ajustes!$H$5,IF(TabelaEstoque[[#This Row],[Saldo]]>=TabelaEstoque[[#This Row],[Máximo]],Ajustes!$H$7,Ajustes!$H$6)))","v":""}]
[{"$nulls":5},{"$f":"IFERROR(VLOOKUP(TabelaEstoque[[#This Row],[Código Forcenedor]],TabelaFC[],MATCH(TabelaFC[[#Headers],[Nome]],TabelaFC[#Headers],0)),\"\")","v":""},{"$f":"IFERROR(VLOOKUP(TabelaEstoque[[#This Row],[Código Forcenedor]],TabelaFC[],MATCH(TabelaFC[[#Headers],[Sobrenome]],TabelaFC[#Headers],0)),\"\")","v":""},{"$f":"SUMIF(TabelaEntradas[SKU],TabelaEstoque[[#This Row],[SKU]],TabelaEntradas[Quantidade])","v":0},{"$f":"SUMIF(TabelaSaidas[SKU],TabelaEstoque[[#This Row],[SKU]],TabelaSaidas[Quantidade])","v":0},{"$f":"SUMIF(TabelaPercas[SKU],TabelaEstoque[[#This Row],[SKU]],TabelaPercas[Quantidade])","v":0},{"$f":"TabelaEstoque[[#This Row],[Entradas]]-TabelaEstoque[[#This Row],[Saídas]]-TabelaEstoque[[#This Row],[Percas]]","v":0},null,null,{"$f":"IF(TabelaEstoque[[#This Row],[Mínimo]]=\"\",\"\",IF(TabelaEstoque[[#This Row],[Saldo]]<=TabelaEstoque[[#This Row],[Mínimo]],Ajustes!$H$5,IF(TabelaEstoque[[#This Row],[Saldo]]>=TabelaEstoque[[#This Row],[Máximo]],Ajustes!$H$7,Ajustes!$H$6)))","v":""}]
[{"$nulls":5},{"$f":"IFERROR(VLOOKUP(TabelaEstoque[[#This Row],[Código Forcenedor]],TabelaFC[],MATCH(TabelaFC[[#Headers],[Nome]],TabelaFC[#Headers],0)),\"\")","v":""},{"$f":"IFERROR(VLOOKUP(TabelaEstoque[[#This Row],[Código Forcenedor]],TabelaFC[],MATCH(TabelaFC[[#Headers],[Sobrenome]],TabelaFC[#Headers],0)),\"\")","v":""},{"$f":"SUMIF(TabelaEntradas[SKU],TabelaEstoque[[#This Row],[SKU]],TabelaEntradas[Quantidade])","v":0},{"$f":"SUMIF(TabelaSaidas[SKU],TabelaEstoque[[#This Row],[SKU]],TabelaSaidas[Quantidade])","v":0},{"$f":"SUMIF(TabelaPercas[SKU],TabelaEstoque[[#This Row],[SKU]],TabelaPercas[Quantidade])","v":0},{"$f":"TabelaEstoque[[#This Row],[Entradas]]-TabelaEstoque[[#This Row],[Saídas]]-TabelaEstoque[[#This Row],[Percas]]","v":0},null,null,{"$f":"IF(TabelaEstoque[[#This Row],[Mínimo]]=\"\",\"\",IF(TabelaEstoque[[#This Row],[Saldo]]<=TabelaEstoque[[#This Row],[Mínimo]],Ajustes!$H$5,IF(TabelaEstoque[[#This Row],[Saldo]]>=TabelaEstoque[[#This Row],[Máximo]],Ajustes!$H$7,Ajustes!$H$6)))","v":""}]
[{"$nulls":5},{"$f":"IFERROR(VLOOKUP(TabelaEstoque[[#This Row],[Código Forcenedor]],TabelaFC[],MATCH(TabelaFC[[#Headers],[Nome]],TabelaFC[#Headers],0)),\"\")","v":""},{"$f":"IFERROR(VLOOKUP(TabelaEstoque[[#This Row],[Código Forcenedor]],TabelaFC[],MATCH(TabelaFC[[#Headers],[Sobrenome]],TabelaFC[#Headers],0)),\"\")","v":""},{"$f":"SUMIF(TabelaEntradas[SKU],TabelaEstoque[[#This Row],[SKU]],TabelaEntradas[Quantidade])","v":0},{"$f":"SUMIF(TabelaSaidas[SKU],TabelaEstoque[[#This Row],[SKU]],TabelaSaidas[Quantidade])","v":0},{"$f":"SUMIF(TabelaPercas[SKU],TabelaEstoque[[#This Row],[SKU]],TabelaPercas[Quantidade])","v":0},{"$f":"TabelaEstoque[[#This Row],[Entradas]]-TabelaEstoque[[#This Row],[Saídas]]-TabelaEstoque[[#This Row],[Percas]]","v":0},null,null,{"$f":"IF(TabelaEstoque[[#This Row],[Mínimo]]=\"\",\"\",IF(TabelaEstoque[[#This Row],[Saldo]]<=TabelaEstoque[[#This Row],[Mínimo]],Ajustes!$H$5,IF(TabelaEstoque[[#This Row],[Saldo]]>=TabelaEstoque[[#This Row],[Máximo]],Ajustes!$H$7,Ajustes!$H$6)))","v":""}]
[{"$nulls":5},{"$f":"IFERROR(VLOOKUP(TabelaEstoque[[#This Row],[Código Forcenedor]],TabelaFC[],MATCH(TabelaFC[[#Headers],[Nome]],TabelaFC[#Headers],0)),\"\")","v":""},{"$f":"IFERROR(VLOOKUP(TabelaEstoque[[#This Row],[Código Forcenedor]],TabelaFC[],MATCH(TabelaFC[[#Headers],[Sobrenome]],TabelaFC[#Headers],0)),\"\")","v":""},{"$f":"SUMIF(TabelaEntradas[SKU],TabelaEstoque[[#This Row],[SKU]],TabelaEntradas[Quantidade])","v":0},{"$f":"SUMIF(TabelaSaidas[SKU],TabelaEstoque[[#This Row],[SKU]],TabelaSaidas[Quantidade])","v":0},{"$f":"SUMIF(TabelaPercas[SKU],TabelaEstoque[[#This Row],[SKU]],TabelaPercas[Quantidade])","v":0},{"$f":"TabelaEstoque[[#This Row],[Entradas]]-TabelaEstoque[[#This Row],[Saídas]]-TabelaEstoque[[#This Row],[Percas]]","v":0},null,null,{"$f":"IF(TabelaEstoque[[#This Row],[Mínimo]]=\"\",\"\",IF(TabelaEstoque[[#This Row],[Saldo]]<=TabelaEstoque[[#This Row],[Mínimo]],Ajustes!$H$5,IF(TabelaEstoque[[#This Row],[Saldo]]>=TabelaEstoque[[#This Row],[Máximo]],Ajustes!$H$7,Ajustes!$H$6)))","v":""}]
[{"$nulls":5},{"$f":"IFERROR(VLOOKUP(TabelaEstoque[[#This Row],[Código Forcenedor]],TabelaFC[],MATCH(TabelaFC[[#Headers],[Nome]],TabelaFC[#Headers],0)),\"\")","v":""},{"$f":"IFERROR(VLOOKUP(TabelaEstoque[[#This Row],[Código Forcenedor]],TabelaFC[],MATCH(TabelaFC[[#Headers],[Sobrenome]],TabelaFC[#Headers],0)),\"\")","v":""},{"$f":"SUMIF(TabelaEntradas[SKU],TabelaEstoque[[#This Row],[SKU]],TabelaEntradas[Quantidade])","v":0},{"$f":"SUMIF(TabelaSaidas[SKU],TabelaEstoque[[#This Row],[SKU]],TabelaSaidas[Quantidade])","v":0},{"$f":"SUMIF(TabelaPercas[SKU],TabelaEstoque[[#This Row],[SKU]],TabelaPercas[Quantidade])","v":0},{"$f":"TabelaEstoque[[#This Row],[Entradas]]-TabelaEstoque[[#This Row],[Saídas]]-TabelaEstoque[[#This Row],[Percas]]","v":0},null,null,{"$f":"IF(TabelaEstoque[[#This Row],[Mínimo]]=\"\",\"\",IF(TabelaEstoque[[#This Row],[Saldo]]<=TabelaEstoque[[#This Row],[Mínimo]],Ajustes!$H$5,IF(TabelaEstoque[[#This Row],[Saldo]]>=TabelaEstoque[[#This Row],[Máximo]],Ajustes!$H$7,Ajustes!$H$6)))","v":""}]
[{"$nulls":5},{"$f":"IFERROR(VLOOKUP(TabelaEstoque[[#This Row],[Código Forcenedor]],TabelaFC[],MATCH(TabelaFC[[#Headers],[Nome]],TabelaFC[#Headers],0)),\"\")","v":""},{"$f":"IFERROR(VLOOKUP(TabelaEstoque[[#This Row],[Código Forcenedor]],TabelaFC[],MATCH(TabelaFC[[#Headers],[Sobrenome]],TabelaFC[#Headers],0)),\"\")","v":""},{"$f":"SUMIF(TabelaEntradas[SKU],TabelaEstoque[[#This Row],[SKU]],TabelaEntradas[Quantidade])","v":0},{"$f":"SUMIF(TabelaSaidas[SKU],TabelaEstoque[[#This Row],[SKU]],TabelaSaidas[Quantidade])","v":0},{"$f":"SUMIF(TabelaPercas[SKU],TabelaEstoque[[#This Row],[SKU]],TabelaPercas[Quantidade])","v":0},{"$f":"TabelaEstoque[[#This Row],[Entradas]]-TabelaEstoque[[#This Row],[Saídas]]-TabelaEstoque[[#This Row],[Percas]]","v":0},null,null,{"$f":"IF(TabelaEstoque[[#This Row],[Mínimo]]=\"\",\"\",IF(TabelaEstoque[[#This Row],[Saldo]]<=TabelaEstoque[[#This Row],[Mínimo]],Ajustes!$H$5,IF(TabelaEstoque[[#This Row],[Saldo]]>=TabelaEstoque[[#This Row],[Máximo]],Ajustes!$H$7,Ajustes!$H$6)))","v":""}]
[{"$nulls":5},{"$f":"IFERROR(VLOOKUP(TabelaEstoque[[#This Row],[Código Forcenedor]],TabelaFC[],MATCH(TabelaFC[[#Headers],[Nome]],TabelaFC[#Headers],0)),\"\")","v":""},{"$f":"IFERROR(VLOOKUP(TabelaEstoque[[#This Row],[Código Forcenedor]],TabelaFC[],MATCH(TabelaFC[[#Headers],[Sobrenome]],TabelaFC[#Headers],0)),\"\")","v":""},{"$f":"SUMIF(TabelaEntradas[SKU],TabelaEstoque[[#This Row],[SKU]],TabelaEntradas[Quantidade])","v":0},{"$f":"SUMIF(TabelaSaidas[SKU],TabelaEstoque[[#This Row],[SKU]],TabelaSaidas[Quantidade])","v":0},{"$f":"SUMIF(TabelaPercas[SKU],TabelaEstoque[[#This Row],[SKU]],TabelaPercas[Quantidade])","v":0},{"$f":"TabelaEstoque[[#This Row],[Entradas]]-TabelaEstoque[[#This Row],[Saídas]]-TabelaEstoque[[#This Row],[Percas]]","v":0},null,null,{"$f":"IF(TabelaEstoque[[#This Row],[Mínimo]]=\"\",\"\",IF(TabelaEstoque[[#This Row],[Saldo]]<=TabelaEstoque[[#This Row],[Mínimo]],Ajustes!$H$5,IF(TabelaEstoque[[#This Row],[Saldo]]>=TabelaEstoque[[#This Row],[Máximo]],Ajustes!$H$7,Ajustes!$H$6)))","v":""}]
[{"$nulls":5},{"$f":"IFERROR(VLOOKUP(TabelaEstoque[[#This Row],[Código Forcenedor]],TabelaFC[],MATCH(TabelaFC[[#Headers],[Nome]],TabelaFC[#Headers],0)),\"\")","v":""},{"$f":"IFERROR(VLOOKUP(TabelaEstoque[[#This Row],[Código Forcenedor]],TabelaFC[],MATCH(TabelaFC[[#Headers],[Sobrenome]],TabelaFC[#Headers],0)),\"\")","v":""},{"$f":"SUMIF(TabelaEntradas[SKU],TabelaEstoque[[#This Row],[SKU]],TabelaEntradas[Quantidade])","v":0},{"$f":"SUMIF(TabelaSaidas[SKU],TabelaEstoque[[#This Row],[SKU]],TabelaSaidas[Quantidade])","v":0},{"$f":"SUMIF(TabelaPercas[SKU],TabelaEstoque[[#This Row],[SKU]],TabelaPercas[Quantidade])","v":0},{"$f":"TabelaEstoque[[#This Row],[Entradas]]-TabelaEstoque[[#This Row],[Saídas]]-TabelaEstoque[[#This Row],[Percas]]","v":0},null,null,{"$f":"IF(TabelaEstoque[[#This Row],[Mínimo]]=\"\",\"\",IF(TabelaEstoque[[#This Row],[Saldo]]<=TabelaEstoque[[#This Row],[Mínimo]],Ajustes!$H$5,IF(TabelaEstoque[[#This Row],[Saldo]]>=TabelaEstoque[[#This Row],[Máximo]],Ajustes!$H$7,Ajustes!$H$6)))","v":""}]
[{"$nulls":5},{"$f":"IFERROR(VLOOKUP(TabelaEstoque[[#This Row],[Código Forcenedor]],TabelaFC[],MATCH(TabelaFC[[#Headers],[Nome]],TabelaFC[#Headers],0)),\"\")","v":""},{"$f":"IFERROR(VLOOKUP(TabelaEstoque[[#This Row],[Código Forcenedor]],TabelaFC[],MATCH(TabelaFC[[#Headers],[Sobrenome]],TabelaFC[#Headers],0)),\"\")","v":""},{"$f":"SUMIF(TabelaEntradas[SKU],TabelaEstoque[[#This Row],[SKU]],TabelaEntradas[Quantidade])","v":0},{"$f":"SUMIF(TabelaSaidas[SKU],TabelaEstoque[[#This Row],[SKU]],TabelaSaidas[Quantidade])","v":0},{"$f":"SUMIF(TabelaPercas[SKU],TabelaEstoque[[#This Row],[SKU]],TabelaPercas[Quantidade])","v":0},{"$f":"TabelaEstoque[[#This Row],[Entradas]]-TabelaEstoque[[#This Row],[Saídas]]-TabelaEstoque[[#This Row],[Percas]]","v":0},null,null,{"$f":"IF(TabelaEstoque[[#This Row],[Mínimo]]=\"\",\"\",IF(TabelaEstoque[[#This Row],[Saldo]]<=TabelaEstoque[[#This Row],[Mínimo]],Ajustes!$H$5,IF(TabelaEstoque[[#This Row],[Saldo]]>=TabelaEstoque[[#This Row],[Máximo]],Ajustes!$H$7,Ajustes!$H$6)))","v":""}]
[{"$nulls":5},{"$f":"IFERROR(VLOOKUP(TabelaEstoque[[#This Row],[Código Forcenedor]],TabelaFC[],MATCH(TabelaFC[[#Headers],[Nome]],TabelaFC[#Headers],0)),\"\")","v":""},{"$f":"IFERROR(VLOOKUP(TabelaEstoque[[#This Row],[Código Forcenedor]],TabelaFC[],MATCH(TabelaFC[[#Headers],[Sobrenome]],TabelaFC[#Headers],0)),\"\")","v":""},{"$f":"SUMIF(TabelaEntradas[SKU],TabelaEstoque[[#This Row],[SKU]],TabelaEntradas[Quantidade])","v":0},{"$f":"SUMIF(TabelaSaidas[SKU],TabelaEstoque[[#This Row],[SKU]],TabelaSaidas[Quantidade])","v":0},{"$f":"SUMIF(TabelaPercas[SKU],TabelaEstoque[[#This Row],[SKU]],TabelaPercas[Quantidade])","v":0},{"$f":"TabelaEstoque[[#This Row],[Entradas]]-TabelaEstoque[[#This Row],[Saídas]]-TabelaEstoque[[#This Row],[Percas]]","v":0},null,null,{"$f":"IF(TabelaEstoque[[#This Row],[Mínimo]]=\"\",\"\",IF(TabelaEstoque[[#This Row],[Saldo]]<=TabelaEstoque[[#This Row],[Mínimo]],Ajustes!$H$5,IF(TabelaEstoque[[#This Row],[Saldo]]>=TabelaEstoque[[#This Row],[Máximo]],Ajustes!$H$7,Ajustes!$H$6)))","v":""}]
[{"$nulls":5},{"$f":"IFERROR(VLOOKUP(TabelaEstoque[[#This Row],[Código Forcenedor]],TabelaFC[],MATCH(TabelaFC[[#Headers],[Nome]],TabelaFC[#Headers],0)),\"\")","v":""},{"$f":"IFERROR(VLOOKUP(TabelaEstoque[[#This Row],[Código Forcenedor]],TabelaFC[],MATCH(TabelaFC[[#Headers],[Sobrenome]],TabelaFC[#Headers],0)),\"\")","v":""},{"$f":"SUMIF(TabelaEntradas[SKU],TabelaEstoque[[#This Row],[SKU]],TabelaEntradas[Quantidade])","v":0},{"$f":"SUMIF(TabelaSaidas[SKU],TabelaEstoque[[#This Row],[SKU]],TabelaSaidas[Quantidade])","v":0},{"$f":"SUMIF(TabelaPercas[SKU],TabelaEstoque[[#This Row],[SKU]],TabelaPercas[Quantidade])","v":0},{"$f":"TabelaEstoque[[#This Row],[Entradas]]-TabelaEstoque[[#This Row],[Saídas]]-TabelaEstoque[[#This Row],[Percas]]","v":0},null,null,{"$f":"IF(TabelaEstoque[[#This Row],[Mínimo]]=\"\",\"\",IF(TabelaEstoque[[#This Row],[Saldo]]<=TabelaEstoque[[#This Row],[Mínimo]],Ajustes!$H$5,IF(TabelaEstoque[[#This Row],[Saldo]]>=TabelaEstoque[[#This Row],[Máximo]],Ajustes!$H$7,Ajustes!$H$6)))","v":""}]
[{"$nulls":5},{"$f":"IFERROR(VLOOKUP(TabelaEstoque[[#This Row],[Código Forcenedor]],TabelaFC[],MATCH(TabelaFC[[#Headers],[Nome]],TabelaFC[#Headers],0)),\"\")","v":""},{"$f":"IFERROR(VLOOKUP(TabelaEstoque[[#This Row],[Código Forcenedor]],TabelaFC[],MATCH(TabelaFC[[#Headers],[Sobrenome]],TabelaFC[#Headers],0)),\"\")","v":""},{"$f":"SUMIF(TabelaEntradas[SKU],TabelaEstoque[[#This Row],[SKU]],TabelaEntradas[Quantidade])","v":0},{"$f":"SUMIF(TabelaSaidas[SKU],TabelaEstoque[[#This Row],[SKU]],TabelaSaidas[Quantidade])","v":0},{"$f":"SUMIF(TabelaPercas[SKU],TabelaEstoque[[#This Row],[SKU]],TabelaPercas[Quantidade])","v":0},{"$f":"TabelaEstoque[[#This Row],[Entradas]]-TabelaEstoque[[#This Row],[Saídas]]-TabelaEstoque[[#This Row],[Percas]]","v":0},null,null,{"$f":"IF(TabelaEstoque[[#This Row],[Mínimo]]=\"\",\"\",IF(TabelaEstoque[[#This Row],[Saldo]]<=TabelaEstoque[[#This Row],[Mínimo]],Ajustes!$H$5,IF(TabelaEstoque[[#This Row],[Saldo]]>=TabelaEstoque[[#This Row],[Máximo]],Ajustes!$H$7,Ajustes!$H$6)))","v":""}]
[{"$nulls":5},{"$f":"IFERROR(VLOOKUP(TabelaEstoque[[#This Row],[Código Forcenedor]],TabelaFC[],MATCH(TabelaFC[[#Headers],[Nome]],TabelaFC[#Headers],0)),\"\")","v":""},{"$f":"IFERROR(VLOOKUP(TabelaEstoque[[#This Row],[Código Forcenedor]],TabelaFC[],MATCH(TabelaFC[[#Headers],[Sobrenome]],TabelaFC[#Headers],0)),\"\")","v":""},{"$f":"SUMIF(TabelaEntradas[SKU],TabelaEstoque[[#This Row],[SKU]],TabelaEntradas[Quantidade])","v":0},{"$f":"SUMIF(TabelaSaidas[SKU],TabelaEstoque[[#This Row],[SKU]],TabelaSaidas[Quantidade])","v":0},{"$f":"SUMIF(TabelaPercas[SKU],TabelaEstoque[[#This Row],[SKU]],TabelaPercas[Quantidade])","v":0},{"$f":"TabelaEstoque[[#This Row],[Entradas]]-TabelaEstoque[[#This Row],[Saídas]]-TabelaEstoque[[#This Row],[Percas]]","v":0},null,null,{"$f":"IF(TabelaEstoque[[#This Row],[Mínimo]]=\"\",\"\",IF(TabelaEstoque[[#This Row],[Saldo]]<=TabelaEstoque[[#This Row],[Mínimo]],Ajustes!$H$5,IF(TabelaEstoque[[#This Row],[Saldo]]>=TabelaEstoque[[#This Row],[Máximo]],Ajustes!$H$7,Ajustes!$H$6)))","v":""}]
[{"$nulls":5},{"$f":"IFERROR(VLOOKUP(TabelaEstoque[[#This Row],[Código Forcenedor]],TabelaFC[],MATCH(TabelaFC[[#Headers],[Nome]],TabelaFC[#Headers],0)),\"\")","v":""},{"$f":"IFERROR(VLOOKUP(TabelaEstoque[[#This Row],[Código Forcenedor]],TabelaFC[],MATCH(TabelaFC[[#Headers],[Sobrenome]],TabelaFC[#Headers],0)),\"\")","v":""},{"$f":"SUMIF(TabelaEntradas[SKU],TabelaEstoque[[#This Row],[SKU]],TabelaEntradas[Quantidade])","v":0},{"$f":"SUMIF(TabelaSaidas[SKU],TabelaEstoque[[#This Row],[SKU]],TabelaSaidas[Quantidade])","v":0},{"$f":"SUMIF(TabelaPercas[SKU],TabelaEstoque[[#This Row],[SKU]],TabelaPercas[Quantidade])","v":0},{"$f":"TabelaEstoque[[#This Row],[Entradas]]-TabelaEstoque[[#This Row],[Saídas]]-TabelaEstoque[[#This Row],[Percas]]","v":0},null,null,{"$f":"IF(TabelaEstoque[[#This Row],[Mínimo]]=\"\",\"\",IF(TabelaEstoque[[#This Row],[Saldo]]<=TabelaEstoque[[#This Row],[Mínimo]],Ajustes!$H$5,IF(TabelaEstoque[[#This Row],[Saldo]]>=TabelaEstoque[[#This Row],[Máximo]],Ajustes!$H$7,Ajustes!$H$6)))","v":""}]
[{"$nulls":5},{"$f":"IFERROR(VLOOKUP(TabelaEstoque[[#This Row],[Código Forcenedor]],TabelaFC[],MATCH(TabelaFC[[#Headers],[Nome]],TabelaFC[#Headers],0)),\"\")","v":""},{"$f":"IFERROR(VLOOKUP(TabelaEstoque[[#This Row],[Código Forcenedor]],TabelaFC[],MATCH(TabelaFC[[#Headers],[Sobrenome]],TabelaFC[#Headers],0)),\"\")","v":""},{"$f":"SUMIF(TabelaEntradas[SKU],TabelaEstoque[[#This Row],[SKU]],TabelaEntradas[Quantidade])","v":0},{"$f":"SUMIF(TabelaSaidas[SKU],TabelaEstoque[[#This Row],[SKU]],TabelaSaidas[Quantidade])","v":0},{"$f":"SUMIF(TabelaPercas[SKU],TabelaEstoque[[#This Row],[SKU]],TabelaPercas[Quantidade])","v":0},{"$f":"TabelaEstoque[[#This Row],[Entradas]]-TabelaEstoque[[#This Row],[Saídas]]-TabelaEstoque[[#This Row],[Percas]]","v":0},null,null,{"$f":"IF(TabelaEstoque[[#This Row],[Mínimo]]=\"\",\"\",IF(TabelaEstoque[[#This Row],[Saldo]]<=TabelaEstoque[[#This Row],[Mínimo]],Ajustes!$H$5,IF(TabelaEstoque[[#This Row],[Saldo]]>=TabelaEstoque[[#This Row],[Máximo]],Ajustes!$H$7,Ajustes!$H$6)))","v":""}]
[{"$nulls":5},{"$f":"IFERROR(VLOOKUP(TabelaEstoque[[#This Row],[Código Forcenedor]],TabelaFC[],MATCH(TabelaFC[[#Headers],[Nome]],TabelaFC[#Headers],0)),\"\")","v":""},{"$f":"IFERROR(VLOOKUP(TabelaEstoque[[#This Row],[Código Forcenedor]],TabelaFC[],MATCH(TabelaFC[[#Headers],[Sobrenome]],TabelaFC[#Headers],0)),\"\")","v":""},{"$f":"SUMIF(TabelaEntradas[SKU],TabelaEstoque[[#This Row],[SKU]],TabelaEntradas[Quantidade])","v":0},{"$f":"SUMIF(TabelaSaidas[SKU],TabelaEstoque[[#This Row],[SKU]],TabelaSaidas[Quantidade])","v":0},{"$f":"SUMIF(TabelaPercas[SKU],TabelaEstoque[[#This Row],[SKU]],TabelaPercas[Quantidade])","v":0},{"$f":"TabelaEstoque[[#This Row],[Entradas]]-TabelaEstoque[[#This Row],[Saídas]]-TabelaEstoque[[#This Row],[Percas]]","v":0},null,null,{"$f":"IF(TabelaEstoque[[#This Row],[Mínimo]]=\"\",\"\",IF(TabelaEstoque[[#This Row],[Saldo]]<=TabelaEstoque[[#This Row],[Mínimo]],Ajustes!$H$5,IF(TabelaEstoque[[#This Row],[Saldo]]>=TabelaEstoque[[#This Row],[Máximo]],Ajustes!$H$7,Ajustes!$H$6)))","v":""}]
[{"$nulls":5},{"$f":"IFERROR(VLOOKUP(TabelaEstoque[[#This Row],[Código Forcenedor]],TabelaFC[],MATCH(TabelaFC[[#Headers],[Nome]],TabelaFC[#Headers],0)),\"\")","v":""},{"$f":"IFERROR(VLOOKUP(TabelaEstoque[[#This Row],[Código Forcenedor]],TabelaFC[],MATCH(TabelaFC[[#Headers],[Sobrenome]],TabelaFC[#Headers],0)),\"\")","v":""},{"$f":"SUMIF(TabelaEntradas[SKU],TabelaEstoque[[#This Row],[SKU]],TabelaEntradas[Quantidade])","v":0},{"$f":"SUMIF(TabelaSaidas[SKU],TabelaEstoque[[#This Row],[SKU]],TabelaSaidas[Quantidade])","v":0},{"$f":"SUMIF(TabelaPercas[SKU],TabelaEstoque[[#This Row],[SKU]],TabelaPercas[Quantidade])","v":0},{"$f":"TabelaEstoque[[#This Row],[Entradas]]-TabelaEstoque[[#This Row],[Saídas]]-TabelaEstoque[[#This Row],[Percas]]","v":0},null,null,{"$f":"IF(TabelaEstoque[[#This Row],[Mínimo]]=\"\",\"\",IF(TabelaEstoque[[#This Row],[Saldo]]<=TabelaEstoque[[#This Row],[Mínimo]],Ajustes!$H$5,IF(TabelaEstoque[[#This Row],[Saldo]]>=TabelaEstoque[[#This Row],[Máximo]],Ajustes!$H$7,Ajustes!$H$6)))","v":""}]
[{"$nulls":5},{"$f":"IFERROR(VLOOKUP(TabelaEstoque[[#This Row],[Código Forcenedor]],TabelaFC[],MATCH(TabelaFC[[#Headers],[Nome]],TabelaFC[#Headers],0)),\"\")","v":""},{"$f":"IFERROR(VLOOKUP(TabelaEstoque[[#This Row],[Código Forcenedor]],TabelaFC[],MATCH(TabelaFC[[#Headers],[Sobrenome]],TabelaFC[#Headers],0)),\"\")","v":""},{"$f":"SUMIF(TabelaEntradas[SKU],TabelaEstoque[[#This Row],[SKU]],TabelaEntradas[Quantidade])","v":0},{"$f":"SUMIF(TabelaSaidas[SKU],TabelaEstoque[[#This Row],[SKU]],TabelaSaidas[Quantidade])","v":0},{"$f":"SUMIF(TabelaPercas[SKU],TabelaEstoque[[#This Row],[SKU]],TabelaPercas[Quantidade])","v":0},{"$f":"TabelaEstoque[[#This Row],[Entradas]]-TabelaEstoque[[#This Row],[Saídas]]-TabelaEstoque[[#This Row],[Percas]]","v":0},null,null,{"$f":"IF(TabelaEstoque[[#This Row],[Mínimo]]=\"\",\"\",IF(TabelaEstoque[[#This Row],[Saldo]]<=TabelaEstoque[[#This Row],[Mínimo]],Ajustes!$H$5,IF(TabelaEstoque[[#This Row],[Saldo]]>=TabelaEstoque[[#This Row],[Máximo]],Ajustes!$H$7,Ajustes!$H$6)))","v":""}]
[{"$nulls":5},{"$f":"IFERROR(VLOOKUP(TabelaEstoque[[#This Row],[Código Forcenedor]],TabelaFC[],MATCH(TabelaFC[[#Headers],[Nome]],TabelaFC[#Headers],0)),\"\")","v":""},{"$f":"IFERROR(VLOOKUP(TabelaEstoque[[#This Row],[Código Forcenedor]],TabelaFC[],MATCH(TabelaFC[[#Headers],[Sobrenome]],TabelaFC[#Headers],0)),\"\")","v":""},{"$f":"SUMIF(TabelaEntradas[SKU],TabelaEstoque[[#This Row],[SKU]],TabelaEntradas[Quantidade])","v":0},{"$f":"SUMIF(TabelaSaidas[SKU],TabelaEstoque[[#This Row],[SKU]],TabelaSaidas[Quantidade])","v":0},{"$f":"SUMIF(TabelaPercas[SKU],TabelaEstoque[[#This Row],[SKU]],TabelaPercas[Quantidade])","v":0},{"$f":"TabelaEstoque[[#This Row],[Entradas]]-TabelaEstoque[[#This Row],[Saídas]]-TabelaEstoque[[#This Row],[Percas]]","v":0},null,null,{"$f":"IF(TabelaEstoque[[#This Row],[Mínimo]]=\"\",\"\",IF(TabelaEstoque[[#This Row],[Saldo]]<=TabelaEstoque[[#This Row],[Mínimo]],Ajustes!$H$5,IF(TabelaEstoque[[#This Row],[Saldo]]>=TabelaEstoque[[#This Row],[Máximo]],Ajustes!$H$7,Ajustes!$H$6)))","v":""}]

{"sheet":"Entradas","index":5,"n_rows":20,"n_cols":10,"rows_kept":20}
[]
[]
["SKU","Descrição","Tipo","Medição","Número da Nota","Data de pedido","Data de entrega","Preço de compra","Quantidade","Observação"]
[{"v":1,"d":"000001"},{"$f":"IF(TabelaEntradas[[#This Row],[SKU]]=\"\",\"Digite o SKU ao lado\",VLOOKUP(TabelaEntradas[[#This Row],[SKU]],TabelaEstoque[#All],MATCH(TabelaEstoque[[#Headers],[Descrição]],TabelaEstoque[#Headers],0),FALSE))","v":"Etiqueta de composição P"},{"$f":"IF(TabelaEntradas[[#This Row],[SKU]]=\"\",\"\",VLOOKUP(TabelaEntradas[[#This Row],[SKU]],TabelaEstoque[#All],MATCH(TabelaEstoque[[#Headers],[Tipos]],TabelaEstoque[#Headers],0),FALSE))","v":"Materia Prima"},{"$f":"IF(TabelaEntradas[[#This Row],[SKU]]=\"\",\"\",VLOOKUP(TabelaEntradas[[#This Row],[SKU]],TabelaEstoque[#All],MATCH(TabelaEstoque[[#Headers],[Medição]],TabelaEstoque[#Headers],0),FALSE))","v":"Unidade"},123456,"2015-08-10","2015-08-25",{"v":20,"d":"20.00"},50,"teste"]
[{"v":1,"d":"000001"},{"$f":"IF(TabelaEntradas[[#This Row],[SKU]]=\"\",\"Digite o SKU ao lado\",VLOOKUP(TabelaEntradas[[#This Row],[SKU]],TabelaEstoque[#All],MATCH(TabelaEstoque[[#Headers],[Descrição]],TabelaEstoque[#Headers],0),FALSE))","v":"Etiqueta de composição P"},{"$f":"IF(TabelaEntradas[[#This Row],[SKU]]=\"\",\"\",VLOOKUP(TabelaEntradas[[#This Row],[SKU]],TabelaEstoque[#All],MATCH(TabelaEstoque[[#Headers],[Tipos]],TabelaEstoque[#Headers],0),FALSE))","v":"Materia Prima"},{"$f":"IF(TabelaEntradas[[#This Row],[SKU]]=\"\",\"\",VLOOKUP(TabelaEntradas[[#This Row],[SKU]],TabelaEstoque[#All],MATCH(TabelaEstoque[[#Headers],[Medição]],TabelaEstoque[#Headers],0),FALSE))","v":"Unidade"},123456789,"2015-08-15","2015-08-20",{"v":20,"d":"20.00"},85,"teste"]
[{"v":3,"d":"000003"},{"$f":"IF(TabelaEntradas[[#This Row],[SKU]]=\"\",\"Digite o SKU ao lado\",VLOOKUP(TabelaEntradas[[#This Row],[SKU]],TabelaEstoque[#All],MATCH(TabelaEstoque[[#Headers],[Descrição]],TabelaEstoque[#Headers],0),FALSE))","v":"Etiqueta de composição G"},{"$f":"IF(TabelaEntradas[[#This Row],[SKU]]=\"\",\"\",VLOOKUP(TabelaEntradas[[#This Row],[SKU]],TabelaEstoque[#All],MATCH(TabelaEstoque[[#Headers],[Tipos]],TabelaEstoque[#Headers],0),FALSE))","v":"Materia Prima"},{"$f":"IF(TabelaEntradas[[#This Row],[SKU]]=\"\",\"\",VLOOKUP(TabelaEntradas[[#This Row],[SKU]],TabelaEstoque[#All],MATCH(TabelaEstoque[[#Headers],[Medição]],TabelaEstoque[#Headers],0),FALSE))","v":"Pacote"},12,"2015-08-12","2015-09-30",{"v":10,"d":"10.00"},30,"teste"]
[{"v":4,"d":"000004"},{"$f":"IF(TabelaEntradas[[#This Row],[SKU]]=\"\",\"Digite o SKU ao lado\",VLOOKUP(TabelaEntradas[[#This Row],[SKU]],TabelaEstoque[#All],MATCH(TabelaEstoque[[#Headers],[Descrição]],TabelaEstoque[#Headers],0),FALSE))","v":"Etiqueta de composição GG"},{"$f":"IF(TabelaEntradas[[#This Row],[SKU]]=\"\",\"\",VLOOKUP(TabelaEntradas[[#This Row],[SKU]],TabelaEstoque[#All],MATCH(TabelaEstoque[[#Headers],[Tipos]],TabelaEstoque[#Headers],0),FALSE))","v":"Materia Prima"},{"$f":"IF(TabelaEntradas[[#This Row],[SKU]]=\"\",\"\",VLOOKUP(TabelaEntradas[[#This Row],[SKU]],TabelaEstoque[#All],MATCH(TabelaEstoque[[#Headers],[Medição]],TabelaEstoque[#Headers],0),FALSE))","v":"Peça"},{"$nulls":4},80]
[null,{"$f":"IF(TabelaEntradas[[#This Row],[SKU]]=\"\",\"Digite o SKU ao lado\",VLOOKUP(TabelaEntradas[[#This Row],[SKU]],TabelaEstoque[#All],MATCH(TabelaEstoque[[#Headers],[Descrição]],TabelaEstoque[#Headers],0),FALSE))","v":"Digite o SKU ao lado"},{"$f":"IF(TabelaEntradas[[#This Row],[SKU]]=\"\",\"\",VLOOKUP(TabelaEntradas[[#This Row],[SKU]],TabelaEstoque[#All],MATCH(TabelaEstoque[[#Headers],[Tipos]],TabelaEstoque[#Headers],0),FALSE))","v":""},{"$f":"IF(TabelaEntradas[[#This Row],[SKU]]=\"\",\"\",VLOOKUP(TabelaEntradas[[#This Row],[SKU]],TabelaEstoque[#All],MATCH(TabelaEstoque[[#Headers],[Medição]],TabelaEstoque[#Headers],0),FALSE))","v":""},{"$nulls":4},60]
[null,{"$f":"IF(TabelaEntradas[[#This Row],[SKU]]=\"\",\"Digite o SKU ao lado\",VLOOKUP(TabelaEntradas[[#This Row],[SKU]],TabelaEstoque[#All],MATCH(TabelaEstoque[[#Headers],[Descrição]],TabelaEstoque[#Headers],0),FALSE))","v":"Digite o SKU ao lado"},{"$f":"IF(TabelaEntradas[[#This Row],[SKU]]=\"\",\"\",VLOOKUP(TabelaEntradas[[#This Row],[SKU]],TabelaEstoque[#All],MATCH(TabelaEstoque[[#Headers],[Tipos]],TabelaEstoque[#Headers],0),FALSE))","v":""},{"$f":"IF(TabelaEntradas[[#This Row],[SKU]]=\"\",\"\",VLOOKUP(TabelaEntradas[[#This Row],[SKU]],TabelaEstoque[#All],MATCH(TabelaEstoque[[#Headers],[Medição]],TabelaEstoque[#Headers],0),FALSE))","v":""},{"$nulls":4},60]
[null,{"$f":"IF(TabelaEntradas[[#This Row],[SKU]]=\"\",\"Digite o SKU ao lado\",VLOOKUP(TabelaEntradas[[#This Row],[SKU]],TabelaEstoque[#All],MATCH(TabelaEstoque[[#Headers],[Descrição]],TabelaEstoque[#Headers],0),FALSE))","v":"Digite o SKU ao lado"},{"$f":"IF(TabelaEntradas[[#This Row],[SKU]]=\"\",\"\",VLOOKUP(TabelaEntradas[[#This Row],[SKU]],TabelaEstoque[#All],MATCH(TabelaEstoque[[#Headers],[Tipos]],TabelaEstoque[#Headers],0),FALSE))","v":""},{"$f":"IF(TabelaEntradas[[#This Row],[SKU]]=\"\",\"\",VLOOKUP(TabelaEntradas[[#This Row],[SKU]],TabelaEstoque[#All],MATCH(TabelaEstoque[[#Headers],[Medição]],TabelaEstoque[#Headers],0),FALSE))","v":""},{"$nulls":4},30]
[null,{"$f":"IF(TabelaEntradas[[#This Row],[SKU]]=\"\",\"Digite o SKU ao lado\",VLOOKUP(TabelaEntradas[[#This Row],[SKU]],TabelaEstoque[#All],MATCH(TabelaEstoque[[#Headers],[Descrição]],TabelaEstoque[#Headers],0),FALSE))","v":"Digite o SKU ao lado"},{"$f":"IF(TabelaEntradas[[#This Row],[SKU]]=\"\",\"\",VLOOKUP(TabelaEntradas[[#This Row],[SKU]],TabelaEstoque[#All],MATCH(TabelaEstoque[[#Headers],[Tipos]],TabelaEstoque[#Headers],0),FALSE))","v":""},{"$f":"IF(TabelaEntradas[[#This Row],[SKU]]=\"\",\"\",VLOOKUP(TabelaEntradas[[#This Row],[SKU]],TabelaEstoque[#All],MATCH(TabelaEstoque[[#Headers],[Medição]],TabelaEstoque[#Headers],0),FALSE))","v":""},{"$nulls":4},50]
[null,{"$f":"IF(TabelaEntradas[[#This Row],[SKU]]=\"\",\"Digite o SKU ao lado\",VLOOKUP(TabelaEntradas[[#This Row],[SKU]],TabelaEstoque[#All],MATCH(TabelaEstoque[[#Headers],[Descrição]],TabelaEstoque[#Headers],0),FALSE))","v":"Digite o SKU ao lado"},{"$f":"IF(TabelaEntradas[[#This Row],[SKU]]=\"\",\"\",VLOOKUP(TabelaEntradas[[#This Row],[SKU]],TabelaEstoque[#All],MATCH(TabelaEstoque[[#Headers],[Tipos]],TabelaEstoque[#Headers],0),FALSE))","v":""},{"$f":"IF(TabelaEntradas[[#This Row],[SKU]]=\"\",\"\",VLOOKUP(TabelaEntradas[[#This Row],[SKU]],TabelaEstoque[#All],MATCH(TabelaEstoque[[#Headers],[Medição]],TabelaEstoque[#Headers],0),FALSE))","v":""},{"$nulls":4},150]
[null,{"$f":"IF(TabelaEntradas[[#This Row],[SKU]]=\"\",\"Digite o SKU ao lado\",VLOOKUP(TabelaEntradas[[#This Row],[SKU]],TabelaEstoque[#All],MATCH(TabelaEstoque[[#Headers],[Descrição]],TabelaEstoque[#Headers],0),FALSE))","v":"Digite o SKU ao lado"},{"$f":"IF(TabelaEntradas[[#This Row],[SKU]]=\"\",\"\",VLOOKUP(TabelaEntradas[[#This Row],[SKU]],TabelaEstoque[#All],MATCH(TabelaEstoque[[#Headers],[Tipos]],TabelaEstoque[#Headers],0),FALSE))","v":""},{"$f":"IF(TabelaEntradas[[#This Row],[SKU]]=\"\",\"\",VLOOKUP(TabelaEntradas[[#This Row],[SKU]],TabelaEstoque[#All],MATCH(TabelaEstoque[[#Headers],[Medição]],TabelaEstoque[#Headers],0),FALSE))","v":""},{"$nulls":4},30]
[null,{"$f":"IF(TabelaEntradas[[#This Row],[SKU]]=\"\",\"Digite o SKU ao lado\",VLOOKUP(TabelaEntradas[[#This Row],[SKU]],TabelaEstoque[#All],MATCH(TabelaEstoque[[#Headers],[Descrição]],TabelaEstoque[#Headers],0),FALSE))","v":"Digite o SKU ao lado"},{"$f":"IF(TabelaEntradas[[#This Row],[SKU]]=\"\",\"\",VLOOKUP(TabelaEntradas[[#This Row],[SKU]],TabelaEstoque[#All],MATCH(TabelaEstoque[[#Headers],[Tipos]],TabelaEstoque[#Headers],0),FALSE))","v":""},{"$f":"IF(TabelaEntradas[[#This Row],[SKU]]=\"\",\"\",VLOOKUP(TabelaEntradas[[#This Row],[SKU]],TabelaEstoque[#All],MATCH(TabelaEstoque[[#Headers],[Medição]],TabelaEstoque[#Headers],0),FALSE))","v":""},{"$nulls":4},10]
[null,{"$f":"IF(TabelaEntradas[[#This Row],[SKU]]=\"\",\"Digite o SKU ao lado\",VLOOKUP(TabelaEntradas[[#This Row],[SKU]],TabelaEstoque[#All],MATCH(TabelaEstoque[[#Headers],[Descrição]],TabelaEstoque[#Headers],0),FALSE))","v":"Digite o SKU ao lado"},{"$f":"IF(TabelaEntradas[[#This Row],[SKU]]=\"\",\"\",VLOOKUP(TabelaEntradas[[#This Row],[SKU]],TabelaEstoque[#All],MATCH(TabelaEstoque[[#Headers],[Tipos]],TabelaEstoque[#Headers],0),FALSE))","v":""},{"$f":"IF(TabelaEntradas[[#This Row],[SKU]]=\"\",\"\",VLOOKUP(TabelaEntradas[[#This Row],[SKU]],TabelaEstoque[#All],MATCH(TabelaEstoque[[#Headers],[Medição]],TabelaEstoque[#Headers],0),FALSE))","v":""}]
[null,{"$f":"IF(TabelaEntradas[[#This Row],[SKU]]=\"\",\"Digite o SKU ao lado\",VLOOKUP(TabelaEntradas[[#This Row],[SKU]],TabelaEstoque[#All],MATCH(TabelaEstoque[[#Headers],[Descrição]],TabelaEstoque[#Headers],0),FALSE))","v":"Digite o SKU ao lado"},{"$f":"IF(TabelaEntradas[[#This Row],[SKU]]=\"\",\"\",VLOOKUP(TabelaEntradas[[#This Row],[SKU]],TabelaEstoque[#All],MATCH(TabelaEstoque[[#Headers],[Tipos]],TabelaEstoque[#Headers],0),FALSE))","v":""},{"$f":"IF(TabelaEntradas[[#This Row],[SKU]]=\"\",\"\",VLOOKUP(TabelaEntradas[[#This Row],[SKU]],TabelaEstoque[#All],MATCH(TabelaEstoque[[#Headers],[Medição]],TabelaEstoque[#Headers],0),FALSE))","v":""}]
[null,{"$f":"IF(TabelaEntradas[[#This Row],[SKU]]=\"\",\"Digite o SKU ao lado\",VLOOKUP(TabelaEntradas[[#This Row],[SKU]],TabelaEstoque[#All],MATCH(TabelaEstoque[[#Headers],[Descrição]],TabelaEstoque[#Headers],0),FALSE))","v":"Digite o SKU ao lado"},{"$f":"IF(TabelaEntradas[[#This Row],[SKU]]=\"\",\"\",VLOOKUP(TabelaEntradas[[#This Row],[SKU]],TabelaEstoque[#All],MATCH(TabelaEstoque[[#Headers],[Tipos]],TabelaEstoque[#Headers],0),FALSE))","v":""},{"$f":"IF(TabelaEntradas[[#This Row],[SKU]]=\"\",\"\",VLOOKUP(TabelaEntradas[[#This Row],[SKU]],TabelaEstoque[#All],MATCH(TabelaEstoque[[#Headers],[Medição]],TabelaEstoque[#Headers],0),FALSE))","v":""}]
[null,{"$f":"IF(TabelaEntradas[[#This Row],[SKU]]=\"\",\"Digite o SKU ao lado\",VLOOKUP(TabelaEntradas[[#This Row],[SKU]],TabelaEstoque[#All],MATCH(TabelaEstoque[[#Headers],[Descrição]],TabelaEstoque[#Headers],0),FALSE))","v":"Digite o SKU ao lado"},{"$f":"IF(TabelaEntradas[[#This Row],[SKU]]=\"\",\"\",VLOOKUP(TabelaEntradas[[#This Row],[SKU]],TabelaEstoque[#All],MATCH(TabelaEstoque[[#Headers],[Tipos]],TabelaEstoque[#Headers],0),FALSE))","v":""},{"$f":"IF(TabelaEntradas[[#This Row],[SKU]]=\"\",\"\",VLOOKUP(TabelaEntradas[[#This Row],[SKU]],TabelaEstoque[#All],MATCH(TabelaEstoque[[#Headers],[Medição]],TabelaEstoque[#Headers],0),FALSE))","v":""}]
[null,{"$f":"IF(TabelaEntradas[[#This Row],[SKU]]=\"\",\"Digite o SKU ao lado\",VLOOKUP(TabelaEntradas[[#This Row],[SKU]],TabelaEstoque[#All],MATCH(TabelaEstoque[[#Headers],[Descrição]],TabelaEstoque[#Headers],0),FALSE))","v":"Digite o SKU ao lado"},{"$f":"IF(TabelaEntradas[[#This Row],[SKU]]=\"\",\"\",VLOOKUP(TabelaEntradas[[#This Row],[SKU]],TabelaEstoque[#All],MATCH(TabelaEstoque[[#Headers],[Tipos]],TabelaEstoque[#Headers],0),FALSE))","v":""},{"$f":"IF(TabelaEntradas[[#This Row],[SKU]]=\"\",\"\",VLOOKUP(TabelaEntradas[[#This Row],[SKU]],TabelaEstoque[#All],MATCH(TabelaEstoque[[#Headers],[Medição]],TabelaEstoque[#Headers],0),FALSE))","v":""}]
[null,{"$f":"IF(TabelaEntradas[[#This Row],[SKU]]=\"\",\"Digite o SKU ao lado\",VLOOKUP(TabelaEntradas[[#This Row],[SKU]],TabelaEstoque[#All],MATCH(TabelaEstoque[[#Headers],[Descrição]],TabelaEstoque[#Headers],0),FALSE))","v":"Digite o SKU ao lado"},{"$f":"IF(TabelaEntradas[[#This Row],[SKU]]=\"\",\"\",VLOOKUP(TabelaEntradas[[#This Row],[SKU]],TabelaEstoque[#All],MATCH(TabelaEstoque[[#Headers],[Tipos]],TabelaEstoque[#Headers],0),FALSE))","v":""},{"$f":"IF(TabelaEntradas[[#This Row],[SKU]]=\"\",\"\",VLOOKUP(TabelaEntradas[[#This Row],[SKU]],TabelaEstoque[#All],MATCH(TabelaEstoque[[#Headers],[Medição]],TabelaEstoque[#Headers],0),FALSE))","v":""}]

{"sheet":"Saídas","index":6,"n_rows":21,"n_cols":9,"rows_kept":21}
[]
["SKU","Descrição","Tipo","Medição","Data","Quantidade","Retirante","Setor","Observação"]
[{"v":1,"d":"000001"},{"$f":"IFERROR(IF(TabelaSaidas[[#This Row],[SKU]]=\"\",\"\",VLOOKUP(TabelaSaidas[[#This Row],[SKU]],TabelaEstoque[#All],MATCH(TabelaEstoque[[#Headers],[Descrição]],TabelaEstoque[#Headers],0),FALSE)),\"SKU não localizado\")","v":"Etiqueta de composição P"},{"$f":"IFERROR(IF(TabelaSaidas[[#This Row],[SKU]]=\"\",\"\",VLOOKUP(TabelaSaidas[[#This Row],[SKU]],TabelaEstoque[#All],MATCH(TabelaEstoque[[#Headers],[Tipos]],TabelaEstoque[#Headers],0),FALSE)),\"\")","v":"Materia Prima"},{"$f":"IFERROR(IF(TabelaSaidas[[#This Row],[SKU]]=\"\",\"\",VLOOKUP(TabelaSaidas[[#This Row],[SKU]],TabelaEstoque[#All],MATCH(TabelaEstoque[[#Headers],[Medição]],TabelaEstoque[#Headers],0),FALSE)),\"\")","v":"Unidade"},"2015-08-20",10,"José","Vendas","teste"]
[{"v":5,"d":"000005"},{"$f":"IFERROR(IF(TabelaSaidas[[#This Row],[SKU]]=\"\",\"\",VLOOKUP(TabelaSaidas[[#This Row],[SKU]],TabelaEstoque[#All],MATCH(TabelaEstoque[[#Headers],[Descrição]],TabelaEstoque[#Headers],0),FALSE)),\"SKU não localizado\")","v":"camiseta"},{"$f":"IFERROR(IF(TabelaSaidas[[#This Row],[SKU]]=\"\",\"\",VLOOKUP(TabelaSaidas[[#This Row],[SKU]],TabelaEstoque[#All],MATCH(TabelaEstoque[[#Headers],[Tipos]],TabelaEstoque[#Headers],0),FALSE)),\"\")","v":"Produto Pronto"},{"$f":"IFERROR(IF(TabelaSaidas[[#This Row],[SKU]]=\"\",\"\",VLOOKUP(TabelaSaidas[[#This Row],[SKU]],TabelaEstoque[#All],MATCH(TabelaEstoque[[#Headers],[Medição]],TabelaEstoque[#Headers],0),FALSE)),\"\")","v":"Peça"},"2015-08-20",15,"José","Vendas","Teste"]
[null,{"$f":"IFERROR(IF(TabelaSaidas[[#This Row],[SKU]]=\"\",\"\",VLOOKUP(TabelaSaidas[[#This Row],[SKU]],TabelaEstoque[#All],MATCH(TabelaEstoque[[#Headers],[Descrição]],TabelaEstoque[#Headers],0),FALSE)),\"SKU não localizado\")","v":""},{"$f":"IFERROR(IF(TabelaSaidas[[#This Row],[SKU]]=\"\",\"\",VLOOKUP(TabelaSaidas[[#This Row],[SKU]],TabelaEstoque[#All],MATCH(TabelaEstoque[[#Headers],[Tipos]],TabelaEstoque[#Headers],0),FALSE)),\"\")","v":""},{"$f":"IFERROR(IF(TabelaSaidas[[#This Row],[SKU]]=\"\",\"\",VLOOKUP(TabelaSaidas[[#This Row],[SKU]],TabelaEstoque[#All],MATCH(TabelaEstoque[[#Headers],[Medição]],TabelaEstoque[#Headers],0),FALSE)),\"\")","v":""}]
[null,{"$f":"IFERROR(IF(TabelaSaidas[[#This Row],[SKU]]=\"\",\"\",VLOOKUP(TabelaSaidas[[#This Row],[SKU]],TabelaEstoque[#All],MATCH(TabelaEstoque[[#Headers],[Descrição]],TabelaEstoque[#Headers],0),FALSE)),\"SKU não localizado\")","v":""},{"$f":"IFERROR(IF(TabelaSaidas[[#This Row],[SKU]]=\"\",\"\",VLOOKUP(TabelaSaidas[[#This Row],[SKU]],TabelaEstoque[#All],MATCH(TabelaEstoque[[#Headers],[Tipos]],TabelaEstoque[#Headers],0),FALSE)),\"\")","v":""},{"$f":"IFERROR(IF(TabelaSaidas[[#This Row],[SKU]]=\"\",\"\",VLOOKUP(TabelaSaidas[[#This Row],[SKU]],TabelaEstoque[#All],MATCH(TabelaEstoque[[#Headers],[Medição]],TabelaEstoque[#Headers],0),FALSE)),\"\")","v":""}]
[null,{"$f":"IFERROR(IF(TabelaSaidas[[#This Row],[SKU]]=\"\",\"\",VLOOKUP(TabelaSaidas[[#This Row],[SKU]],TabelaEstoque[#All],MATCH(TabelaEstoque[[#Headers],[Descrição]],TabelaEstoque[#Headers],0),FALSE)),\"SKU não localizado\")","v":""},{"$f":"IFERROR(IF(TabelaSaidas[[#This Row],[SKU]]=\"\",\"\",VLOOKUP(TabelaSaidas[[#This Row],[SKU]],TabelaEstoque[#All],MATCH(TabelaEstoque[[#Headers],[Tipos]],TabelaEstoque[#Headers],0),FALSE)),\"\")","v":""},{"$f":"IFERROR(IF(TabelaSaidas[[#This Row],[SKU]]=\"\",\"\",VLOOKUP(TabelaSaidas[[#This Row],[SKU]],TabelaEstoque[#All],MATCH(TabelaEstoque[[#Headers],[Medição]],TabelaEstoque[#Headers],0),FALSE)),\"\")","v":""}]
[null,{"$f":"IFERROR(IF(TabelaSaidas[[#This Row],[SKU]]=\"\",\"\",VLOOKUP(TabelaSaidas[[#This Row],[SKU]],TabelaEstoque[#All],MATCH(TabelaEstoque[[#Headers],[Descrição]],TabelaEstoque[#Headers],0),FALSE)),\"SKU não localizado\")","v":""},{"$f":"IFERROR(IF(TabelaSaidas[[#This Row],[SKU]]=\"\",\"\",VLOOKUP(TabelaSaidas[[#This Row],[SKU]],TabelaEstoque[#All],MATCH(TabelaEstoque[[#Headers],[Tipos]],TabelaEstoque[#Headers],0),FALSE)),\"\")","v":""},{"$f":"IFERROR(IF(TabelaSaidas[[#This Row],[SKU]]=\"\",\"\",VLOOKUP(TabelaSaidas[[#This Row],[SKU]],TabelaEstoque[#All],MATCH(TabelaEstoque[[#Headers],[Medição]],TabelaEstoque[#Headers],0),FALSE)),\"\")","v":""}]
[null,{"$f":"IFERROR(IF(TabelaSaidas[[#This Row],[SKU]]=\"\",\"\",VLOOKUP(TabelaSaidas[[#This Row],[SKU]],TabelaEstoque[#All],MATCH(TabelaEstoque[[#Headers],[Descrição]],TabelaEstoque[#Headers],0),FALSE)),\"SKU não localizado\")","v":""},{"$f":"IFERROR(IF(TabelaSaidas[[#This Row],[SKU]]=\"\",\"\",VLOOKUP(TabelaSaidas[[#This Row],[SKU]],TabelaEstoque[#All],MATCH(TabelaEstoque[[#Headers],[Tipos]],TabelaEstoque[#Headers],0),FALSE)),\"\")","v":""},{"$f":"IFERROR(IF(TabelaSaidas[[#This Row],[SKU]]=\"\",\"\",VLOOKUP(TabelaSaidas[[#This Row],[SKU]],TabelaEstoque[#All],MATCH(TabelaEstoque[[#Headers],[Medição]],TabelaEstoque[#Headers],0),FALSE)),\"\")","v":""}]
[null,{"$f":"IFERROR(IF(TabelaSaidas[[#This Row],[SKU]]=\"\",\"\",VLOOKUP(TabelaSaidas[[#This Row],[SKU]],TabelaEstoque[#All],MATCH(TabelaEstoque[[#Headers],[Descrição]],TabelaEstoque[#Headers],0),FALSE)),\"SKU não localizado\")","v":""},{"$f":"IFERROR(IF(TabelaSaidas[[#This Row],[SKU]]=\"\",\"\",VLOOKUP(TabelaSaidas[[#This Row],[SKU]],TabelaEstoque[#All],MATCH(TabelaEstoque[[#Headers],[Tipos]],TabelaEstoque[#Headers],0),FALSE)),\"\")","v":""},{"$f":"IFERROR(IF(TabelaSaidas[[#This Row],[SKU]]=\"\",\"\",VLOOKUP(TabelaSaidas[[#This Row],[SKU]],TabelaEstoque[#All],MATCH(TabelaEstoque[[#Headers],[Medição]],TabelaEstoque[#Headers],0),FALSE)),\"\")","v":""}]
[null,{"$f":"IFERROR(IF(TabelaSaidas[[#This Row],[SKU]]=\"\",\"\",VLOOKUP(TabelaSaidas[[#This Row],[SKU]],TabelaEstoque[#All],MATCH(TabelaEstoque[[#Headers],[Descrição]],TabelaEstoque[#Headers],0),FALSE)),\"SKU não localizado\")","v":""},{"$f":"IFERROR(IF(TabelaSaidas[[#This Row],[SKU]]=\"\",\"\",VLOOKUP(TabelaSaidas[[#This Row],[SKU]],TabelaEstoque[#All],MATCH(TabelaEstoque[[#Headers],[Tipos]],TabelaEstoque[#Headers],0),FALSE)),\"\")","v":""},{"$f":"IFERROR(IF(TabelaSaidas[[#This Row],[SKU]]=\"\",\"\",VLOOKUP(TabelaSaidas[[#This Row],[SKU]],TabelaEstoque[#All],MATCH(TabelaEstoque[[#Headers],[Medição]],TabelaEstoque[#Headers],0),FALSE)),\"\")","v":""}]
[null,{"$f":"IFERROR(IF(TabelaSaidas[[#This Row],[SKU]]=\"\",\"\",VLOOKUP(TabelaSaidas[[#This Row],[SKU]],TabelaEstoque[#All],MATCH(TabelaEstoque[[#Headers],[Descrição]],TabelaEstoque[#Headers],0),FALSE)),\"SKU não localizado\")","v":""},{"$f":"IFERROR(IF(TabelaSaidas[[#This Row],[SKU]]=\"\",\"\",VLOOKUP(TabelaSaidas[[#This Row],[SKU]],TabelaEstoque[#All],MATCH(TabelaEstoque[[#Headers],[Tipos]],TabelaEstoque[#Headers],0),FALSE)),\"\")","v":""},{"$f":"IFERROR(IF(TabelaSaidas[[#This Row],[SKU]]=\"\",\"\",VLOOKUP(TabelaSaidas[[#This Row],[SKU]],TabelaEstoque[#All],MATCH(TabelaEstoque[[#Headers],[Medição]],TabelaEstoque[#Headers],0),FALSE)),\"\")","v":""}]
[null,{"$f":"IFERROR(IF(TabelaSaidas[[#This Row],[SKU]]=\"\",\"\",VLOOKUP(TabelaSaidas[[#This Row],[SKU]],TabelaEstoque[#All],MATCH(TabelaEstoque[[#Headers],[Descrição]],TabelaEstoque[#Headers],0),FALSE)),\"SKU não localizado\")","v":""},{"$f":"IFERROR(IF(TabelaSaidas[[#This Row],[SKU]]=\"\",\"\",VLOOKUP(TabelaSaidas[[#This Row],[SKU]],TabelaEstoque[#All],MATCH(TabelaEstoque[[#Headers],[Tipos]],TabelaEstoque[#Headers],0),FALSE)),\"\")","v":""},{"$f":"IFERROR(IF(TabelaSaidas[[#This Row],[SKU]]=\"\",\"\",VLOOKUP(TabelaSaidas[[#This Row],[SKU]],TabelaEstoque[#All],MATCH(TabelaEstoque[[#Headers],[Medição]],TabelaEstoque[#Headers],0),FALSE)),\"\")","v":""}]
[null,{"$f":"IFERROR(IF(TabelaSaidas[[#This Row],[SKU]]=\"\",\"\",VLOOKUP(TabelaSaidas[[#This Row],[SKU]],TabelaEstoque[#All],MATCH(TabelaEstoque[[#Headers],[Descrição]],TabelaEstoque[#Headers],0),FALSE)),\"SKU não localizado\")","v":""},{"$f":"IFERROR(IF(TabelaSaidas[[#This Row],[SKU]]=\"\",\"\",VLOOKUP(TabelaSaidas[[#This Row],[SKU]],TabelaEstoque[#All],MATCH(TabelaEstoque[[#Headers],[Tipos]],TabelaEstoque[#Headers],0),FALSE)),\"\")","v":""},{"$f":"IFERROR(IF(TabelaSaidas[[#This Row],[SKU]]=\"\",\"\",VLOOKUP(TabelaSaidas[[#This Row],[SKU]],TabelaEstoque[#All],MATCH(TabelaEstoque[[#Headers],[Medição]],TabelaEstoque[#Headers],0),FALSE)),\"\")","v":""}]
[null,{"$f":"IFERROR(IF(TabelaSaidas[[#This Row],[SKU]]=\"\",\"\",VLOOKUP(TabelaSaidas[[#This Row],[SKU]],TabelaEstoque[#All],MATCH(TabelaEstoque[[#Headers],[Descrição]],TabelaEstoque[#Headers],0),FALSE)),\"SKU não localizado\")","v":""},{"$f":"IFERROR(IF(TabelaSaidas[[#This Row],[SKU]]=\"\",\"\",VLOOKUP(TabelaSaidas[[#This Row],[SKU]],TabelaEstoque[#All],MATCH(TabelaEstoque[[#Headers],[Tipos]],TabelaEstoque[#Headers],0),FALSE)),\"\")","v":""},{"$f":"IFERROR(IF(TabelaSaidas[[#This Row],[SKU]]=\"\",\"\",VLOOKUP(TabelaSaidas[[#This Row],[SKU]],TabelaEstoque[#All],MATCH(TabelaEstoque[[#Headers],[Medição]],TabelaEstoque[#Headers],0),FALSE)),\"\")","v":""}]
[null,{"$f":"IFERROR(IF(TabelaSaidas[[#This Row],[SKU]]=\"\",\"\",VLOOKUP(TabelaSaidas[[#This Row],[SKU]],TabelaEstoque[#All],MATCH(TabelaEstoque[[#Headers],[Descrição]],TabelaEstoque[#Headers],0),FALSE)),\"SKU não localizado\")","v":""},{"$f":"IFERROR(IF(TabelaSaidas[[#This Row],[SKU]]=\"\",\"\",VLOOKUP(TabelaSaidas[[#This Row],[SKU]],TabelaEstoque[#All],MATCH(TabelaEstoque[[#Headers],[Tipos]],TabelaEstoque[#Headers],0),FALSE)),\"\")","v":""},{"$f":"IFERROR(IF(TabelaSaidas[[#This Row],[SKU]]=\"\",\"\",VLOOKUP(TabelaSaidas[[#This Row],[SKU]],TabelaEstoque[#All],MATCH(TabelaEstoque[[#Headers],[Medição]],TabelaEstoque[#Headers],0),FALSE)),\"\")","v":""}]
[null,{"$f":"IFERROR(IF(TabelaSaidas[[#This Row],[SKU]]=\"\",\"\",VLOOKUP(TabelaSaidas[[#This Row],[SKU]],TabelaEstoque[#All],MATCH(TabelaEstoque[[#Headers],[Descrição]],TabelaEstoque[#Headers],0),FALSE)),\"SKU não localizado\")","v":""},{"$f":"IFERROR(IF(TabelaSaidas[[#This Row],[SKU]]=\"\",\"\",VLOOKUP(TabelaSaidas[[#This Row],[SKU]],TabelaEstoque[#All],MATCH(TabelaEstoque[[#Headers],[Tipos]],TabelaEstoque[#Headers],0),FALSE)),\"\")","v":""},{"$f":"IFERROR(IF(TabelaSaidas[[#This Row],[SKU]]=\"\",\"\",VLOOKUP(TabelaSaidas[[#This Row],[SKU]],TabelaEstoque[#All],MATCH(TabelaEstoque[[#Headers],[Medição]],TabelaEstoque[#Headers],0),FALSE)),\"\")","v":""}]
[null,{"$f":"IFERROR(IF(TabelaSaidas[[#This Row],[SKU]]=\"\",\"\",VLOOKUP(TabelaSaidas[[#This Row],[SKU]],TabelaEstoque[#All],MATCH(TabelaEstoque[[#Headers],[Descrição]],TabelaEstoque[#Headers],0),FALSE)),\"SKU não localizado\")","v":""},{"$f":"IFERROR(IF(TabelaSaidas[[#This Row],[SKU]]=\"\",\"\",VLOOKUP(TabelaSaidas[[#This Row],[SKU]],TabelaEstoque[#All],MATCH(TabelaEstoque[[#Headers],[Tipos]],TabelaEstoque[#Headers],0),FALSE)),\"\")","v":""},{"$f":"IFERROR(IF(TabelaSaidas[[#This Row],[SKU]]=\"\",\"\",VLOOKUP(TabelaSaidas[[#This Row],[SKU]],TabelaEstoque[#All],MATCH(TabelaEstoque[[#Headers],[Medição]],TabelaEstoque[#Headers],0),FALSE)),\"\")","v":""}]
[null,{"$f":"IFERROR(IF(TabelaSaidas[[#This Row],[SKU]]=\"\",\"\",VLOOKUP(TabelaSaidas[[#This Row],[SKU]],TabelaEstoque[#All],MATCH(TabelaEstoque[[#Headers],[Descrição]],TabelaEstoque[#Headers],0),FALSE)),\"SKU não localizado\")","v":""},{"$f":"IFERROR(IF(TabelaSaidas[[#This Row],[SKU]]=\"\",\"\",VLOOKUP(TabelaSaidas[[#This Row],[SKU]],TabelaEstoque[#All],MATCH(TabelaEstoque[[#Headers],[Tipos]],TabelaEstoque[#Headers],0),FALSE)),\"\")","v":""},{"$f":"IFERROR(IF(TabelaSaidas[[#This Row],[SKU]]=\"\",\"\",VLOOKUP(TabelaSaidas[[#This Row],[SKU]],TabelaEstoque[#All],MATCH(TabelaEstoque[[#Headers],[Medição]],TabelaEstoque[#Headers],0),FALSE)),\"\")","v":""}]
[null,{"$f":"IFERROR(IF(TabelaSaidas[[#This Row],[SKU]]=\"\",\"\",VLOOKUP(TabelaSaidas[[#This Row],[SKU]],TabelaEstoque[#All],MATCH(TabelaEstoque[[#Headers],[Descrição]],TabelaEstoque[#Headers],0),FALSE)),\"SKU não localizado\")","v":""},{"$f":"IFERROR(IF(TabelaSaidas[[#This Row],[SKU]]=\"\",\"\",VLOOKUP(TabelaSaidas[[#This Row],[SKU]],TabelaEstoque[#All],MATCH(TabelaEstoque[[#Headers],[Tipos]],TabelaEstoque[#Headers],0),FALSE)),\"\")","v":""},{"$f":"IFERROR(IF(TabelaSaidas[[#This Row],[SKU]]=\"\",\"\",VLOOKUP(TabelaSaidas[[#This Row],[SKU]],TabelaEstoque[#All],MATCH(TabelaEstoque[[#Headers],[Medição]],TabelaEstoque[#Headers],0),FALSE)),\"\")","v":""}]
[null,{"$f":"IFERROR(IF(TabelaSaidas[[#This Row],[SKU]]=\"\",\"\",VLOOKUP(TabelaSaidas[[#This Row],[SKU]],TabelaEstoque[#All],MATCH(TabelaEstoque[[#Headers],[Descrição]],TabelaEstoque[#Headers],0),FALSE)),\"SKU não localizado\")","v":""},{"$f":"IFERROR(IF(TabelaSaidas[[#This Row],[SKU]]=\"\",\"\",VLOOKUP(TabelaSaidas[[#This Row],[SKU]],TabelaEstoque[#All],MATCH(TabelaEstoque[[#Headers],[Tipos]],TabelaEstoque[#Headers],0),FALSE)),\"\")","v":""},{"$f":"IFERROR(IF(TabelaSaidas[[#This Row],[SKU]]=\"\",\"\",VLOOKUP(TabelaSaidas[[#This Row],[SKU]],TabelaEstoque[#All],MATCH(TabelaEstoque[[#Headers],[Medição]],TabelaEstoque[#Headers],0),FALSE)),\"\")","v":""}]

{"sheet":"Perdas","index":7,"n_rows":20,"n_cols":7,"rows_kept":20}
[]
["SKU","Descrição","Tipo","Medição","Data","Quantidade","Motivo"]
[{"v":1,"d":"000001"},{"$f":"IFERROR(IF(TabelaPercas[[#This Row],[SKU]]=\"\",\"\",VLOOKUP(TabelaPercas[[#This Row],[SKU]],TabelaEstoque[#All],MATCH(TabelaEstoque[[#Headers],[Descrição]],TabelaEstoque[#Headers],0),FALSE)),\"SKU não localizado\")","v":"Etiqueta de composição P"},{"$f":"IFERROR(IF(TabelaPercas[[#This Row],[SKU]]=\"\",\"\",VLOOKUP(TabelaPercas[[#This Row],[SKU]],TabelaEstoque[#All],MATCH(TabelaEstoque[[#Headers],[Tipos]],TabelaEstoque[#Headers],0),FALSE)),\"\")","v":"Materia Prima"},{"$f":"IFERROR(IF(TabelaPercas[[#This Row],[SKU]]=\"\",\"\",VLOOKUP(TabelaPercas[[#This Row],[SKU]],TabelaEstoque[#All],MATCH(TabelaEstoque[[#Headers],[Medição]],TabelaEstoque[#Headers],0),FALSE)),\"\")","v":"Unidade"},"2015-08-25",15,"produto vencido"]
[{"v":2,"d":"000002"},{"$f":"IFERROR(IF(TabelaPercas[[#This Row],[SKU]]=\"\",\"\",VLOOKUP(TabelaPercas[[#This Row],[SKU]],TabelaEstoque[#All],MATCH(TabelaEstoque[[#Headers],[Descrição]],TabelaEstoque[#Headers],0),FALSE)),\"SKU não localizado\")","v":"Etiqueta de composição M"},{"$f":"IFERROR(IF(TabelaPercas[[#This Row],[SKU]]=\"\",\"\",VLOOKUP(TabelaPercas[[#This Row],[SKU]],TabelaEstoque[#All],MATCH(TabelaEstoque[[#Headers],[Tipos]],TabelaEstoque[#Headers],0),FALSE)),\"\")","v":"Materia Prima"},{"$f":"IFERROR(IF(TabelaPercas[[#This Row],[SKU]]=\"\",\"\",VLOOKUP(TabelaPercas[[#This Row],[SKU]],TabelaEstoque[#All],MATCH(TabelaEstoque[[#Headers],[Medição]],TabelaEstoque[#Headers],0),FALSE)),\"\")","v":"Unidade"}]
[null,{"$f":"IFERROR(IF(TabelaPercas[[#This Row],[SKU]]=\"\",\"\",VLOOKUP(TabelaPercas[[#This Row],[SKU]],TabelaEstoque[#All],MATCH(TabelaEstoque[[#Headers],[Descrição]],TabelaEstoque[#Headers],0),FALSE)),\"SKU não localizado\")","v":""},{"$f":"IFERROR(IF(TabelaPercas[[#This Row],[SKU]]=\"\",\"\",VLOOKUP(TabelaPercas[[#This Row],[SKU]],TabelaEstoque[#All],MATCH(TabelaEstoque[[#Headers],[Tipos]],TabelaEstoque[#Headers],0),FALSE)),\"\")","v":""},{"$f":"IFERROR(IF(TabelaPercas[[#This Row],[SKU]]=\"\",\"\",VLOOKUP(TabelaPercas[[#This Row],[SKU]],TabelaEstoque[#All],MATCH(TabelaEstoque[[#Headers],[Medição]],TabelaEstoque[#Headers],0),FALSE)),\"\")","v":""}]
[null,{"$f":"IFERROR(IF(TabelaPercas[[#This Row],[SKU]]=\"\",\"\",VLOOKUP(TabelaPercas[[#This Row],[SKU]],TabelaEstoque[#All],MATCH(TabelaEstoque[[#Headers],[Descrição]],TabelaEstoque[#Headers],0),FALSE)),\"SKU não localizado\")","v":""},{"$f":"IFERROR(IF(TabelaPercas[[#This Row],[SKU]]=\"\",\"\",VLOOKUP(TabelaPercas[[#This Row],[SKU]],TabelaEstoque[#All],MATCH(TabelaEstoque[[#Headers],[Tipos]],TabelaEstoque[#Headers],0),FALSE)),\"\")","v":""},{"$f":"IFERROR(IF(TabelaPercas[[#This Row],[SKU]]=\"\",\"\",VLOOKUP(TabelaPercas[[#This Row],[SKU]],TabelaEstoque[#All],MATCH(TabelaEstoque[[#Headers],[Medição]],TabelaEstoque[#Headers],0),FALSE)),\"\")","v":""}]
[null,{"$f":"IFERROR(IF(TabelaPercas[[#This Row],[SKU]]=\"\",\"\",VLOOKUP(TabelaPercas[[#This Row],[SKU]],TabelaEstoque[#All],MATCH(TabelaEstoque[[#Headers],[Descrição]],TabelaEstoque[#Headers],0),FALSE)),\"SKU não localizado\")","v":""},{"$f":"IFERROR(IF(TabelaPercas[[#This Row],[SKU]]=\"\",\"\",VLOOKUP(TabelaPercas[[#This Row],[SKU]],TabelaEstoque[#All],MATCH(TabelaEstoque[[#Headers],[Tipos]],TabelaEstoque[#Headers],0),FALSE)),\"\")","v":""},{"$f":"IFERROR(IF(TabelaPercas[[#This Row],[SKU]]=\"\",\"\",VLOOKUP(TabelaPercas[[#This Row],[SKU]],TabelaEstoque[#All],MATCH(TabelaEstoque[[#Headers],[Medição]],TabelaEstoque[#Headers],0),FALSE)),\"\")","v":""}]
[null,{"$f":"IFERROR(IF(TabelaPercas[[#This Row],[SKU]]=\"\",\"\",VLOOKUP(TabelaPercas[[#This Row],[SKU]],TabelaEstoque[#All],MATCH(TabelaEstoque[[#Headers],[Descrição]],TabelaEstoque[#Headers],0),FALSE)),\"SKU não localizado\")","v":""},{"$f":"IFERROR(IF(TabelaPercas[[#This Row],[SKU]]=\"\",\"\",VLOOKUP(TabelaPercas[[#This Row],[SKU]],TabelaEstoque[#All],MATCH(TabelaEstoque[[#Headers],[Tipos]],TabelaEstoque[#Headers],0),FALSE)),\"\")","v":""},{"$f":"IFERROR(IF(TabelaPercas[[#This Row],[SKU]]=\"\",\"\",VLOOKUP(TabelaPercas[[#This Row],[SKU]],TabelaEstoque[#All],MATCH(TabelaEstoque[[#Headers],[Medição]],TabelaEstoque[#Headers],0),FALSE)),\"\")","v":""}]
[null,{"$f":"IFERROR(IF(TabelaPercas[[#This Row],[SKU]]=\"\",\"\",VLOOKUP(TabelaPercas[[#This Row],[SKU]],TabelaEstoque[#All],MATCH(TabelaEstoque[[#Headers],[Descrição]],TabelaEstoque[#Headers],0),FALSE)),\"SKU não localizado\")","v":""},{"$f":"IFERROR(IF(TabelaPercas[[#This Row],[SKU]]=\"\",\"\",VLOOKUP(TabelaPercas[[#This Row],[SKU]],TabelaEstoque[#All],MATCH(TabelaEstoque[[#Headers],[Tipos]],TabelaEstoque[#Headers],0),FALSE)),\"\")","v":""},{"$f":"IFERROR(IF(TabelaPercas[[#This Row],[SKU]]=\"\",\"\",VLOOKUP(TabelaPercas[[#This Row],[SKU]],TabelaEstoque[#All],MATCH(TabelaEstoque[[#Headers],[Medição]],TabelaEstoque[#Headers],0),FALSE)),\"\")","v":""}]
[null,{"$f":"IFERROR(IF(TabelaPercas[[#This Row],[SKU]]=\"\",\"\",VLOOKUP(TabelaPercas[[#This Row],[SKU]],TabelaEstoque[#All],MATCH(TabelaEstoque[[#Headers],[Descrição]],TabelaEstoque[#Headers],0),FALSE)),\"SKU não localizado\")","v":""},{"$f":"IFERROR(IF(TabelaPercas[[#This Row],[SKU]]=\"\",\"\",VLOOKUP(TabelaPercas[[#This Row],[SKU]],TabelaEstoque[#All],MATCH(TabelaEstoque[[#Headers],[Tipos]],TabelaEstoque[#Headers],0),FALSE)),\"\")","v":""},{"$f":"IFERROR(IF(TabelaPercas[[#This Row],[SKU]]=\"\",\"\",VLOOKUP(TabelaPercas[[#This Row],[SKU]],TabelaEstoque[#All],MATCH(TabelaEstoque[[#Headers],[Medição]],TabelaEstoque[#Headers],0),FALSE)),\"\")","v":""}]
[null,{"$f":"IFERROR(IF(TabelaPercas[[#This Row],[SKU]]=\"\",\"\",VLOOKUP(TabelaPercas[[#This Row],[SKU]],TabelaEstoque[#All],MATCH(TabelaEstoque[[#Headers],[Descrição]],TabelaEstoque[#Headers],0),FALSE)),\"SKU não localizado\")","v":""},{"$f":"IFERROR(IF(TabelaPercas[[#This Row],[SKU]]=\"\",\"\",VLOOKUP(TabelaPercas[[#This Row],[SKU]],TabelaEstoque[#All],MATCH(TabelaEstoque[[#Headers],[Tipos]],TabelaEstoque[#Headers],0),FALSE)),\"\")","v":""},{"$f":"IFERROR(IF(TabelaPercas[[#This Row],[SKU]]=\"\",\"\",VLOOKUP(TabelaPercas[[#This Row],[SKU]],TabelaEstoque[#All],MATCH(TabelaEstoque[[#Headers],[Medição]],TabelaEstoque[#Headers],0),FALSE)),\"\")","v":""}]
[null,{"$f":"IFERROR(IF(TabelaPercas[[#This Row],[SKU]]=\"\",\"\",VLOOKUP(TabelaPercas[[#This Row],[SKU]],TabelaEstoque[#All],MATCH(TabelaEstoque[[#Headers],[Descrição]],TabelaEstoque[#Headers],0),FALSE)),\"SKU não localizado\")","v":""},{"$f":"IFERROR(IF(TabelaPercas[[#This Row],[SKU]]=\"\",\"\",VLOOKUP(TabelaPercas[[#This Row],[SKU]],TabelaEstoque[#All],MATCH(TabelaEstoque[[#Headers],[Tipos]],TabelaEstoque[#Headers],0),FALSE)),\"\")","v":""},{"$f":"IFERROR(IF(TabelaPercas[[#This Row],[SKU]]=\"\",\"\",VLOOKUP(TabelaPercas[[#This Row],[SKU]],TabelaEstoque[#All],MATCH(TabelaEstoque[[#Headers],[Medição]],TabelaEstoque[#Headers],0),FALSE)),\"\")","v":""}]
[null,{"$f":"IFERROR(IF(TabelaPercas[[#This Row],[SKU]]=\"\",\"\",VLOOKUP(TabelaPercas[[#This Row],[SKU]],TabelaEstoque[#All],MATCH(TabelaEstoque[[#Headers],[Descrição]],TabelaEstoque[#Headers],0),FALSE)),\"SKU não localizado\")","v":""},{"$f":"IFERROR(IF(TabelaPercas[[#This Row],[SKU]]=\"\",\"\",VLOOKUP(TabelaPercas[[#This Row],[SKU]],TabelaEstoque[#All],MATCH(TabelaEstoque[[#Headers],[Tipos]],TabelaEstoque[#Headers],0),FALSE)),\"\")","v":""},{"$f":"IFERROR(IF(TabelaPercas[[#This Row],[SKU]]=\"\",\"\",VLOOKUP(TabelaPercas[[#This Row],[SKU]],TabelaEstoque[#All],MATCH(TabelaEstoque[[#Headers],[Medição]],TabelaEstoque[#Headers],0),FALSE)),\"\")","v":""}]
[null,{"$f":"IFERROR(IF(TabelaPercas[[#This Row],[SKU]]=\"\",\"\",VLOOKUP(TabelaPercas[[#This Row],[SKU]],TabelaEstoque[#All],MATCH(TabelaEstoque[[#Headers],[Descrição]],TabelaEstoque[#Headers],0),FALSE)),\"SKU não localizado\")","v":""},{"$f":"IFERROR(IF(TabelaPercas[[#This Row],[SKU]]=\"\",\"\",VLOOKUP(TabelaPercas[[#This Row],[SKU]],TabelaEstoque[#All],MATCH(TabelaEstoque[[#Headers],[Tipos]],TabelaEstoque[#Headers],0),FALSE)),\"\")","v":""},{"$f":"IFERROR(IF(TabelaPercas[[#This Row],[SKU]]=\"\",\"\",VLOOKUP(TabelaPercas[[#This Row],[SKU]],TabelaEstoque[#All],MATCH(TabelaEstoque[[#Headers],[Medição]],TabelaEstoque[#Headers],0),FALSE)),\"\")","v":""}]
[null,{"$f":"IFERROR(IF(TabelaPercas[[#This Row],[SKU]]=\"\",\"\",VLOOKUP(TabelaPercas[[#This Row],[SKU]],TabelaEstoque[#All],MATCH(TabelaEstoque[[#Headers],[Descrição]],TabelaEstoque[#Headers],0),FALSE)),\"SKU não localizado\")","v":""},{"$f":"IFERROR(IF(TabelaPercas[[#This Row],[SKU]]=\"\",\"\",VLOOKUP(TabelaPercas[[#This Row],[SKU]],TabelaEstoque[#All],MATCH(TabelaEstoque[[#Headers],[Tipos]],TabelaEstoque[#Headers],0),FALSE)),\"\")","v":""},{"$f":"IFERROR(IF(TabelaPercas[[#This Row],[SKU]]=\"\",\"\",VLOOKUP(TabelaPercas[[#This Row],[SKU]],TabelaEstoque[#All],MATCH(TabelaEstoque[[#Headers],[Medição]],TabelaEstoque[#Headers],0),FALSE)),\"\")","v":""}]
[null,{"$f":"IFERROR(IF(TabelaPercas[[#This Row],[SKU]]=\"\",\"\",VLOOKUP(TabelaPercas[[#This Row],[SKU]],TabelaEstoque[#All],MATCH(TabelaEstoque[[#Headers],[Descrição]],TabelaEstoque[#Headers],0),FALSE)),\"SKU não localizado\")","v":""},{"$f":"IFERROR(IF(TabelaPercas[[#This Row],[SKU]]=\"\",\"\",VLOOKUP(TabelaPercas[[#This Row],[SKU]],TabelaEstoque[#All],MATCH(TabelaEstoque[[#Headers],[Tipos]],TabelaEstoque[#Headers],0),FALSE)),\"\")","v":""},{"$f":"IFERROR(IF(TabelaPercas[[#This Row],[SKU]]=\"\",\"\",VLOOKUP(TabelaPercas[[#This Row],[SKU]],TabelaEstoque[#All],MATCH(TabelaEstoque[[#Headers],[Medição]],TabelaEstoque[#Headers],0),FALSE)),\"\")","v":""}]
[null,{"$f":"IFERROR(IF(TabelaPercas[[#This Row],[SKU]]=\"\",\"\",VLOOKUP(TabelaPercas[[#This Row],[SKU]],TabelaEstoque[#All],MATCH(TabelaEstoque[[#Headers],[Descrição]],TabelaEstoque[#Headers],0),FALSE)),\"SKU não localizado\")","v":""},{"$f":"IFERROR(IF(TabelaPercas[[#This Row],[SKU]]=\"\",\"\",VLOOKUP(TabelaPercas[[#This Row],[SKU]],TabelaEstoque[#All],MATCH(TabelaEstoque[[#Headers],[Tipos]],TabelaEstoque[#Headers],0),FALSE)),\"\")","v":""},{"$f":"IFERROR(IF(TabelaPercas[[#This Row],[SKU]]=\"\",\"\",VLOOKUP(TabelaPercas[[#This Row],[SKU]],TabelaEstoque[#All],MATCH(TabelaEstoque[[#Headers],[Medição]],TabelaEstoque[#Headers],0),FALSE)),\"\")","v":""}]
[null,{"$f":"IFERROR(IF(TabelaPercas[[#This Row],[SKU]]=\"\",\"\",VLOOKUP(TabelaPercas[[#This Row],[SKU]],TabelaEstoque[#All],MATCH(TabelaEstoque[[#Headers],[Descrição]],TabelaEstoque[#Headers],0),FALSE)),\"SKU não localizado\")","v":""},{"$f":"IFERROR(IF(TabelaPercas[[#This Row],[SKU]]=\"\",\"\",VLOOKUP(TabelaPercas[[#This Row],[SKU]],TabelaEstoque[#All],MATCH(TabelaEstoque[[#Headers],[Tipos]],TabelaEstoque[#Headers],0),FALSE)),\"\")","v":""},{"$f":"IFERROR(IF(TabelaPercas[[#This Row],[SKU]]=\"\",\"\",VLOOKUP(TabelaPercas[[#This Row],[SKU]],TabelaEstoque[#All],MATCH(TabelaEstoque[[#Headers],[Medição]],TabelaEstoque[#Headers],0),FALSE)),\"\")","v":""}]
[null,{"$f":"IFERROR(IF(TabelaPercas[[#This Row],[SKU]]=\"\",\"\",VLOOKUP(TabelaPercas[[#This Row],[SKU]],TabelaEstoque[#All],MATCH(TabelaEstoque[[#Headers],[Descrição]],TabelaEstoque[#Headers],0),FALSE)),\"SKU não localizado\")","v":""},{"$f":"IFERROR(IF(TabelaPercas[[#This Row],[SKU]]=\"\",\"\",VLOOKUP(TabelaPercas[[#This Row],[SKU]],TabelaEstoque[#All],MATCH(TabelaEstoque[[#Headers],[Tipos]],TabelaEstoque[#Headers],0),FALSE)),\"\")","v":""},{"$f":"IFERROR(IF(TabelaPercas[[#This Row],[SKU]]=\"\",\"\",VLOOKUP(TabelaPercas[[#This Row],[SKU]],TabelaEstoque[#All],MATCH(TabelaEstoque[[#Headers],[Medição]],TabelaEstoque[#Headers],0),FALSE)),\"\")","v":""}]
[null,{"$f":"IFERROR(IF(TabelaPercas[[#This Row],[SKU]]=\"\",\"\",VLOOKUP(TabelaPercas[[#This Row],[SKU]],TabelaEstoque[#All],MATCH(TabelaEstoque[[#Headers],[Descrição]],TabelaEstoque[#Headers],0),FALSE)),\"SKU não localizado\")","v":""},{"$f":"IFERROR(IF(TabelaPercas[[#This Row],[SKU]]=\"\",\"\",VLOOKUP(TabelaPercas[[#This Row],[SKU]],TabelaEstoque[#All],MATCH(TabelaEstoque[[#Headers],[Tipos]],TabelaEstoque[#Headers],0),FALSE)),\"\")","v":""},{"$f":"IFERROR(IF(TabelaPercas[[#This Row],[SKU]]=\"\",\"\",VLOOKUP(TabelaPercas[[#This Row],[SKU]],TabelaEstoque[#All],MATCH(TabelaEstoque[[#Headers],[Medição]],TabelaEstoque[#Headers],0),FALSE)),\"\")","v":""}]

{"sheet":"F e C","index":8,"n_rows":6,"n_cols":7,"rows_kept":6}
[]
["Código","Nome","Sobrenome","Tipo","E-mail","Telefone","Endereço"]
[1,"José","Silva","Fornecedor","emailteste@inovar.net",1253456789,"rua X,100"]
[2,"Roberto","José","Cliente","email2@inovar.net",987654321,"rua H,500"]
[3,"Edy","Lauro","Cliente","email@email.com",154852563,"Rua de Exemplo, sem número, centro, Cidade"]
[4]

{"sheet":"Ajustes","index":9,"n_rows":12,"n_cols":8,"rows_kept":12,"merged":[[0,3,0,11]]}
[{"$nulls":3},"PLANILHA DE AJUSTES"]
[]
[]
[null,"TIPO",null,"MEDIÇÃO",null,"SETOR",null,"RESSUPRIMENTO"]
[null,"Materia Prima",null,"Unidade",null,"Vendas",null,"Comprar Agora"]
[null,"Produto Pronto",null,"Pacote",null,"Escritório",null,"Quantidade Ideal"]
[null,"Diversos",null,"Kilo",null,"Uso interno",null,"Produto em EXCESSO"]
[null,"Uso interno",null,"Peça"]
[{"$nulls":3},"Metro"]
[{"$nulls":3},"Gramas"]
[{"$nulls":3},"Caixa"]
[{"$nulls":3},"Saco"]

{"sheet":"Ajuda","index":10,"n_rows":33,"n_cols":14,"rows_kept":33,"merged":[[2,11,2,13],[4,11,8,11],[4,13,8,13],[8,1,8,7],[10,11,14,11],[10,13,14,13],[11,1,11,8],[16,11,16,13],[17,11,21,13]]}
[null,"Planilha de Controle de Estoques"]
[]
[null,"Autor","Gledson Leitão",{"$nulls":8},"COMEÇE POR AQUI"]
[null,"Site","http://www.inovar.net/"]
[{"$nulls":7}," ",{"$nulls":3},"MENU PRINCIPAL",null,"AJUDA"]
[null,"Curso Excel na Prática."]
[null,"Curso ensinando passo a passo a criar uma planilha igual a essa"]
[null,"Clique no link abaixo e conheça detalhes do curso."]
[null,"http://inovar.net/curso-planilha-de-controle-de-estoques"]
[]
[null,"Conheça a versão completa desta planilha clique abaixo.",{"$nulls":9},"PÁGINA DA PLANILHA",null,"Site Inovar.net"]
[null,"Versão completa da Planilha de controle de estoque clique aqui."]
[null,"A versão completa possui vários recursos não disponíveis aqui, além disso possui suporte técnico prioritário."]
[]
[]
[null,"Usa a Planilha com versão anterior?"]
[null,"Vídeo ensinando como importar os dados para a nova versão.",{"$nulls":9},"TEM ALGUMA SUGESTÃO"]
[null,"Clique aqui.",{"$nulls":9},"Envie sua sugestão clicando abaixo"]
[{"$nulls":5},"Na versão completa você tem:"]
[]
[null,"Deseja sugerir uma melhoria para próxima atualização? ",{"$nulls":3},1,"PERSONALIZAÇÃO"]
[null,"Use o link ao lado >>> para me enviar uma sugestão.",{"$nulls":3},2,"AJUSTES PERSONALIZADOS"]
[{"$nulls":5},3,"ENTRADAS DE PRODUTOS"]
[null,"A Planilha possui duas telas de menus, como defino qual usar?",{"$nulls":3},4,"SAÍDAS DE PRODUTOS"]
[null,null,"Basta Clicar no botão abaixo.",null,null,5,"PERDAS DE PRODUTOS"]
[{"$nulls":5},6,"FORNECEDORES E CLIENTES"]
[{"$nulls":5},7,"CONSULTAS DE PRODUTO"]
[{"$nulls":5},8,"PESQUISA NO ESTOQUE"]
[{"$nulls":5},9,"PESQUISAR ENTRADAS"]
[{"$nulls":5},10,"PESQUISAR SAÍDAS"]
[{"$nulls":5},11,"PESQUISAR PERDAS"]
[{"$nulls":5},12,"SUPORTE TÉCNICO"]
[{"$nulls":7},"E muito mais..."]

{"sheet":"Aviso","index":11,"n_rows":22,"n_cols":17,"rows_kept":22,"merged":[[2,14,2,16],[4,14,8,14],[4,16,8,16],[10,14,14,14],[10,16,14,16],[16,14,16,16],[17,14,21,16]]}
[]
[]
[{"$nulls":14},"COMEÇE POR AQUI"]
[]
[null,null,"ESSA PLANILHA TRABALHA COM MACROS, PARA HABILITAR TODOS OS RECURSOS SIGA OS PASSOS ABAIXO:",{"$nulls":11},"MENU PRINCIPAL",null,"AJUDA"]
[]
[]
[]
[]
[]
[{"$nulls":14},"PÁGINA DA PLANILHA",null,"Site Inovar.net"]
[]
[]
[]
[]
[]
[{"$nulls":14},"TEM ALGUMA SUGESTÃO"]
[{"$nulls":14},"Envie sua sugestão clicando abaixo"]
[]
[null,null,1,"CLIQUE EM OPÇÕES COMO MOSTRA A IMAGEM ACIMA"]
[null,null,2,"MARQUE A OPÇÃO HABILITAR ESTE CONTEÚDO EM SEGUIDA CLIQUE EM OK"]
[{"$nulls":4},"Observação: A imagem acima de refere ao Excel 2007 e 2010."]

{"sheet":"Versão","index":12,"n_rows":104,"n_cols":5,"rows_kept":104}
["Versão da planilha",null,{"$f":"VLOOKUP(LARGE(Tabela1[Data],1),A4:C104,2,FALSE)","v":"1.2.2"}]
[]
["Data","Versão","Melhoria"]
["2012-12-31",{"$f":"IF(Tabela1[[#This Row],[Melhoria]]=\"\",\"\",E4)","v":"1.0.0"},"COMEÇO DA PLANILHA",null,"1.0.0"]
["2013-09-21",{"$f":"IF(Tabela1[[#This Row],[Melhoria]]=\"\",\"\",E5)","v":"1.0.1"},"Controle de versão implantado",null,"1.0.1"]
["2013-09-21",{"$f":"IF(Tabela1[[#This Row],[Melhoria]]=\"\",\"\",E6)","v":"1.0.2"},"Controle centralizado de configurações implantado na Planilha \"Configuração\"",null,"1.0.2"]
["2013-09-21",{"$f":"IF(Tabela1[[#This Row],[Melhoria]]=\"\",\"\",E7)","v":"1.0.3"},"Controle de estoque informando os status \"Ideal\", \"Comprar\" e \"Excesso\" nas recomendações",null,"1.0.3"]
["2014-03-10",{"$f":"IF(Tabela1[[#This Row],[Melhoria]]=\"\",\"\",E8)","v":"1.0.4"},"Criado o fórum para suporte e sugestões para futuras atualizações na planilha - www.inovar.net/meudinheiro",null,"1.0.4"]
["2014-06-20",{"$f":"IF(Tabela1[[#This Row],[Melhoria]]=\"\",\"\",E9)","v":"1.0.5"},"Adicionado 5 novas colunas para informações personalizadas pelo usuário",null,"1.0.5"]
["2014-08-04",{"$f":"IF(Tabela1[[#This Row],[Melhoria]]=\"\",\"\",E10)","v":"1.0.6"},"Adicionado os campos RETIRANTE E SETOR na planilha Saídas",null,"1.0.6"]
["2014-08-04",{"$f":"IF(Tabela1[[#This Row],[Melhoria]]=\"\",\"\",E11)","v":"1.0.7"},"Adicionado a pesquisa por lista de nomes e SKU na planilha Consultas",null,"1.0.7"]
["2015-05-11",{"$f":"IF(Tabela1[[#This Row],[Melhoria]]=\"\",\"\",E12)","v":"1.0.8"},"Inícil da atualização da planilha",null,"1.0.8"]
["2015-05-11",{"$f":"IF(Tabela1[[#This Row],[Melhoria]]=\"\",\"\",E13)","v":"1.0.9"},"Produção do curso disponível em www.inovar.net/cursos",null,"1.0.9"]
["2015-05-14",{"$f":"IF(Tabela1[[#This Row],[Melhoria]]=\"\",\"\",E14)","v":"1.1.0"},"Lançamento da nova Planilha no site www.inovar.net e do curso no site www.inovar.net/cursos",null,"1.1.0"]
["2015-05-15",{"$f":"IF(Tabela1[[#This Row],[Melhoria]]=\"\",\"\",E15)","v":"1.1.1"},"Adicionado nome do fornecedor na planilha de consultas",null,"1.1.1"]
["2015-05-15",{"$f":"IF(Tabela1[[#This Row],[Melhoria]]=\"\",\"\",E16)","v":"1.1.2"},"Adicionada outro campo de pesquisa digitando o SKU na planilha Consultas",null,"1.1.2"]
["2015-05-24",{"$f":"IF(Tabela1[[#This Row],[Melhoria]]=\"\",\"\",E17)","v":"1.1.3"},"Planilha de pesquisa criada e aperfeiçoada",null,"1.1.3"]
["2015-05-24",{"$f":"IF(Tabela1[[#This Row],[Melhoria]]=\"\",\"\",E18)","v":"1.1.4"},"Criada tabela para personalização das mensagens de ressuprimento na planilha Ajustes",null,"1.1.4"]
["2015-05-24",{"$f":"IF(Tabela1[[#This Row],[Melhoria]]=\"\",\"\",E19)","v":"1.1.5"},"Criada a opção de buscar apenas digitando o SKU, Buscando por outras opções, e limpar pesquisa",null,"1.1.5"]
["2015-05-25",{"$f":"IF(Tabela1[[#This Row],[Melhoria]]=\"\",\"\",E20)","v":"1.1.6"},"Criada planilha para menu geral",null,"1.1.6"]
["2015-05-26",{"$f":"IF(Tabela1[[#This Row],[Melhoria]]=\"\",\"\",E21)","v":"1.1.7"},"Criada a Planilha ajuda com informações sobre suporte técnico, loja e site",null,"1.1.7"]
["2015-05-27",{"$f":"IF(Tabela1[[#This Row],[Melhoria]]=\"\",\"\",E22)","v":"1.1.8"},"Criada a planilha de aviso explicando como habilitar macros",null,"1.1.8"]
["2015-05-31",{"$f":"IF(Tabela1[[#This Row],[Melhoria]]=\"\",\"\",E23)","v":"1.1.9"},"Criada nova página de Menus",null,"1.1.9"]
["2015-06-01",{"$f":"IF(Tabela1[[#This Row],[Melhoria]]=\"\",\"\",E24)","v":"1.2.0"},"Nova forma de contagem da versão da planilha, detalhando melhor cada passo e evolução",null,"1.2.0"]
["2015-06-14",{"$f":"IF(Tabela1[[#This Row],[Melhoria]]=\"\",\"\",E25)","v":"1.2.1"},"Funções corrigidas nas planilhas de entradas, saídas e perdas.",null,"1.2.1"]
["2015-10-05",{"$f":"IF(Tabela1[[#This Row],[Melhoria]]=\"\",\"\",E26)","v":"1.2.2"},"Revisão de recursos e links, melhoria de desempenho.",null,"1.2.2"]
["2015-10-05",{"$f":"IF(Tabela1[[#This Row],[Melhoria]]=\"\",\"\",E27)","v":"1.2.3"},"Removido aviso de informações de inclusão de informações pessoais.",null,"1.2.3"]
["2015-10-05",{"$f":"IF(Tabela1[[#This Row],[Melhoria]]=\"\",\"\",E28)","v":"1.2.4"},"Adicionada função para mudar Tela principal clicando em um botão na parte de ajuda.",null,"1.2.4"]
[null,{"$f":"IF(Tabela1[[#This Row],[Melhoria]]=\"\",\"\",E29)","v":""},null,null,"1.2.5"]
[null,{"$f":"IF(Tabela1[[#This Row],[Melhoria]]=\"\",\"\",E30)","v":""},null,null,"1.2.6"]
[null,{"$f":"IF(Tabela1[[#This Row],[Melhoria]]=\"\",\"\",E31)","v":""},null,null,"1.2.7"]
[null,{"$f":"IF(Tabela1[[#This Row],[Melhoria]]=\"\",\"\",E32)","v":""},null,null,"1.2.8"]
[null,{"$f":"IF(Tabela1[[#This Row],[Melhoria]]=\"\",\"\",E33)","v":""},null,null,"1.2.9"]
[null,{"$f":"IF(Tabela1[[#This Row],[Melhoria]]=\"\",\"\",E34)","v":""},null,null,"1.3.0"]
[null,{"$f":"IF(Tabela1[[#This Row],[Melhoria]]=\"\",\"\",E35)","v":""},null,null,"1.3.1"]
[null,{"$f":"IF(Tabela1[[#This Row],[Melhoria]]=\"\",\"\",E36)","v":""},null,null,"1.3.2"]
[null,{"$f":"IF(Tabela1[[#This Row],[Melhoria]]=\"\",\"\",E37)","v":""},null,null,"1.3.3"]
[null,{"$f":"IF(Tabela1[[#This Row],[Melhoria]]=\"\",\"\",E38)","v":""},null,null,"1.3.4"]
[null,{"$f":"IF(Tabela1[[#This Row],[Melhoria]]=\"\",\"\",E39)","v":""},null,null,"1.3.5"]
[null,{"$f":"IF(Tabela1[[#This Row],[Melhoria]]=\"\",\"\",E40)","v":""},null,null,"1.3.6"]
[null,{"$f":"IF(Tabela1[[#This Row],[Melhoria]]=\"\",\"\",E41)","v":""},null,null,"1.3.7"]
[null,{"$f":"IF(Tabela1[[#This Row],[Melhoria]]=\"\",\"\",E42)","v":""},null,null,"1.3.8"]
[null,{"$f":"IF(Tabela1[[#This Row],[Melhoria]]=\"\",\"\",E43)","v":""},null,null,"1.3.9"]
[null,{"$f":"IF(Tabela1[[#This Row],[Melhoria]]=\"\",\"\",E44)","v":""},null,null,"1.4.0"]
[null,{"$f":"IF(Tabela1[[#This Row],[Melhoria]]=\"\",\"\",E45)","v":""},null,null,"1.4.1"]
[null,{"$f":"IF(Tabela1[[#This Row],[Melhoria]]=\"\",\"\",E46)","v":""},null,null,"1.4.2"]
[null,{"$f":"IF(Tabela1[[#This Row],[Melhoria]]=\"\",\"\",E47)","v":""},null,null,"1.4.3"]
[null,{"$f":"IF(Tabela1[[#This Row],[Melhoria]]=\"\",\"\",E48)","v":""},null,null,"1.4.4"]
[null,{"$f":"IF(Tabela1[[#This Row],[Melhoria]]=\"\",\"\",E49)","v":""},null,null,"1.4.5"]
[null,{"$f":"IF(Tabela1[[#This Row],[Melhoria]]=\"\",\"\",E50)","v":""},null,null,"1.4.6"]
[null,{"$f":"IF(Tabela1[[#This Row],[Melhoria]]=\"\",\"\",E51)","v":""},null,null,"1.4.7"]
[null,{"$f":"IF(Tabela1[[#This Row],[Melhoria]]=\"\",\"\",E52)","v":""},null,null,"1.4.8"]
[null,{"$f":"IF(Tabela1[[#This Row],[Melhoria]]=\"\",\"\",E53)","v":""},null,null,"1.4.9"]
[null,{"$f":"IF(Tabela1[[#This Row],[Melhoria]]=\"\",\"\",E54)","v":""},null,null,"1.5.0"]
[null,{"$f":"IF(Tabela1[[#This Row],[Melhoria]]=\"\",\"\",E55)","v":""},null,null,"1.5.1"]
[null,{"$f":"IF(Tabela1[[#This Row],[Melhoria]]=\"\",\"\",E56)","v":""},null,null,"1.5.2"]
[null,{"$f":"IF(Tabela1[[#This Row],[Melhoria]]=\"\",\"\",E57)","v":""},null,null,"1.5.3"]
[null,{"$f":"IF(Tabela1[[#This Row],[Melhoria]]=\"\",\"\",E58)","v":""},null,null,"1.5.4"]
[null,{"$f":"IF(Tabela1[[#This Row],[Melhoria]]=\"\",\"\",E59)","v":""},null,null,"1.5.5"]
[null,{"$f":"IF(Tabela1[[#This Row],[Melhoria]]=\"\",\"\",E60)","v":""},null,null,"1.5.6"]
[null,{"$f":"IF(Tabela1[[#This Row],[Melhoria]]=\"\",\"\",E61)","v":""},null,null,"1.5.7"]
[null,{"$f":"IF(Tabela1[[#This Row],[Melhoria]]=\"\",\"\",E62)","v":""},null,null,"1.5.8"]
[null,{"$f":"IF(Tabela1[[#This Row],[Melhoria]]=\"\",\"\",E63)","v":""},null,null,"1.5.9"]
[null,{"$f":"IF(Tabela1[[#This Row],[Melhoria]]=\"\",\"\",E64)","v":""},null,null,"1.6.0"]
[null,{"$f":"IF(Tabela1[[#This Row],[Melhoria]]=\"\",\"\",E65)","v":""},null,null,"1.6.1"]
[null,{"$f":"IF(Tabela1[[#This Row],[Melhoria]]=\"\",\"\",E66)","v":""},null,null,"1.6.2"]
[null,{"$f":"IF(Tabela1[[#This Row],[Melhoria]]=\"\",\"\",E67)","v":""},null,null,"1.6.3"]
[null,{"$f":"IF(Tabela1[[#This Row],[Melhoria]]=\"\",\"\",E68)","v":""},null,null,"1.6.4"]
[null,{"$f":"IF(Tabela1[[#This Row],[Melhoria]]=\"\",\"\",E69)","v":""},null,null,"1.6.5"]
[null,{"$f":"IF(Tabela1[[#This Row],[Melhoria]]=\"\",\"\",E70)","v":""},null,null,"1.6.6"]
[null,{"$f":"IF(Tabela1[[#This Row],[Melhoria]]=\"\",\"\",E71)","v":""},null,null,"1.6.7"]
[null,{"$f":"IF(Tabela1[[#This Row],[Melhoria]]=\"\",\"\",E72)","v":""},null,null,"1.6.8"]
[null,{"$f":"IF(Tabela1[[#This Row],[Melhoria]]=\"\",\"\",E73)","v":""},null,null,"1.6.9"]
[null,{"$f":"IF(Tabela1[[#This Row],[Melhoria]]=\"\",\"\",E74)","v":""},null,null,"1.7.0"]
[null,{"$f":"IF(Tabela1[[#This Row],[Melhoria]]=\"\",\"\",E75)","v":""},null,null,"1.7.1"]
[null,{"$f":"IF(Tabela1[[#This Row],[Melhoria]]=\"\",\"\",E76)","v":""},null,null,"1.7.2"]
[null,{"$f":"IF(Tabela1[[#This Row],[Melhoria]]=\"\",\"\",E77)","v":""},null,null,"1.7.3"]
[null,{"$f":"IF(Tabela1[[#This Row],[Melhoria]]=\"\",\"\",E78)","v":""},null,null,"1.7.4"]
[null,{"$f":"IF(Tabela1[[#This Row],[Melhoria]]=\"\",\"\",E79)","v":""},null,null,"1.7.5"]
[null,{"$f":"IF(Tabela1[[#This Row],[Melhoria]]=\"\",\"\",E80)","v":""},null,null,"1.7.6"]
[null,{"$f":"IF(Tabela1[[#This Row],[Melhoria]]=\"\",\"\",E81)","v":""},null,null,"1.7.7"]
[null,{"$f":"IF(Tabela1[[#This Row],[Melhoria]]=\"\",\"\",E82)","v":""},null,null,"1.7.8"]
[null,{"$f":"IF(Tabela1[[#This Row],[Melhoria]]=\"\",\"\",E83)","v":""},null,null,"1.7.9"]
[null,{"$f":"IF(Tabela1[[#This Row],[Melhoria]]=\"\",\"\",E84)","v":""},null,null,"1.8.0"]
[null,{"$f":"IF(Tabela1[[#This Row],[Melhoria]]=\"\",\"\",E85)","v":""},null,null,"1.8.1"]
[null,{"$f":"IF(Tabela1[[#This Row],[Melhoria]]=\"\",\"\",E86)","v":""},null,null,"1.8.2"]
[null,{"$f":"IF(Tabela1[[#This Row],[Melhoria]]=\"\",\"\",E87)","v":""},null,null,"1.8.3"]
[null,{"$f":"IF(Tabela1[[#This Row],[Melhoria]]=\"\",\"\",E88)","v":""},null,null,"1.8.4"]
[null,{"$f":"IF(Tabela1[[#This Row],[Melhoria]]=\"\",\"\",E89)","v":""},null,null,"1.8.5"]
[null,{"$f":"IF(Tabela1[[#This Row],[Melhoria]]=\"\",\"\",E90)","v":""},null,null,"1.8.6"]
[null,{"$f":"IF(Tabela1[[#This Row],[Melhoria]]=\"\",\"\",E91)","v":""},null,null,"1.8.7"]
[null,{"$f":"IF(Tabela1[[#This Row],[Melhoria]]=\"\",\"\",E92)","v":""},null,null,"1.8.8"]
[null,{"$f":"IF(Tabela1[[#This Row],[Melhoria]]=\"\",\"\",E93)","v":""},null,null,"1.8.9"]
[null,{"$f":"IF(Tabela1[[#This Row],[Melhoria]]=\"\",\"\",E94)","v":""},null,null,"1.9.0"]
[null,{"$f":"IF(Tabela1[[#This Row],[Melhoria]]=\"\",\"\",E95)","v":""},null,null,"1.9.1"]
[null,{"$f":"IF(Tabela1[[#This Row],[Melhoria]]=\"\",\"\",E96)","v":""},null,null,"1.9.2"]
[null,{"$f":"IF(Tabela1[[#This Row],[Melhoria]]=\"\",\"\",E97)","v":""},null,null,"1.9.3"]
[null,{"$f":"IF(Tabela1[[#This Row],[Melhoria]]=\"\",\"\",E98)","v":""},null,null,"1.9.4"]
[null,{"$f":"IF(Tabela1[[#This Row],[Melhoria]]=\"\",\"\",E99)","v":""},null,null,"1.9.5"]
[null,{"$f":"IF(Tabela1[[#This Row],[Melhoria]]=\"\",\"\",E100)","v":""},null,null,"1.9.6"]
[null,{"$f":"IF(Tabela1[[#This Row],[Melhoria]]=\"\",\"\",E101)","v":""},null,null,"1.9.7"]
[null,{"$f":"IF(Tabela1[[#This Row],[Melhoria]]=\"\",\"\",E102)","v":""},null,null,"1.9.8"]
[null,{"$f":"IF(Tabela1[[#This Row],[Melhoria]]=\"\",\"\",E103)","v":""},null,null,"1.9.9"]
[null,{"$f":"IF(Tabela1[[#This Row],[Melhoria]]=\"\",\"\",E104)","v":""},null,null,"2.0.0"]

{"sheet":"Comparativo","index":13,"n_rows":40,"n_cols":6,"rows_kept":40}
[null,"Comparativo entre a planilha de controle de estoque grátis e a versão paga"]
[]
[null,"DESCRIÇÃO","GRATUITA","PAGA"]
[null,"Cadastro e controle de Produtos","SIM","SIM",null,"A versão paga possui vários recursos não citados aqui."]
[null,"Cadastro e controle de Pessoas","SIM","SIM",null,"Visite o site www.inovar.net para conferir as novidades."]
[null,"Cadastro e controle de Equipamentos","SIM","SIM"]
[null,"Controle de garantias","NÃO","SIM"]
[null,"Controle de entrada de produtos","SIM","SIM"]
[null,"Controle de saídas de produtos","SIM","SIM"]
[null,"Controle de perdas","SIM","SIM"]
[null,"Pesquisa de um produtos no estoque","SIM","SIM"]
[null,"Pesquisa de vários produtos no estoque","NÃO","SIM"]
[null,"Consulta avançada ao estoque","NÃO","SIM"]
[null,"Consulta avançada as saídas","NÃO","SIM"]
[null,"Consulta avançada as perdas","NÃO","SIM"]
[null,"Cadastro avançado de clientes e fornecedores","NÃO","SIM"]
[null,"Menu facilitador de navegação entre as abas da planilha","NÃO","SIM"]
[null,"Vídeos de ajuda online","NÃO","SIM"]
[null,"Suporte por E-mail","SIM","SIM"]
[null,"Suporte prioritário por E-mail","NÃO","SIM"]
[null,"Suporte por chat","NÃO","SIM"]
[null,"Suporte por telefone","NÃO","SIM"]
[null,"Atendimento remoto (acesso remoto via TeamViewer)","NÃO","SIM"]
[null,"Ajuste personalizado de tipo de produto","SIM","SIM"]
[null,"Ajuste personalizado de medida do produto","SIM","SIM"]
[null,"Ajuste personalizado de ressuprimento","SIM","SIM"]
[null,"Cadastro de local do produto no estoque","NÃO","SIM"]
[null,"Ajuste personalizado de local de produto no estoque","NÃO","SIM"]
[null,"Ajuste personalizado de grups de pessoas","NÃO","SIM"]
[null,"Ajuste personalizado de setores para saídas dos produtos","SIM","SIM"]
[null,"Ajuste personalizado de motivos de perdas de produtos","NÃO","SIM"]
[null,"Ajuste personalizado de grupo de equipamentos e bens para garantia","NÃO","SIM"]
[null,"Ajuste personalizado de situação de equipamentos e bens","NÃO","SIM"]
[null,"Controle e histórico de movimentação financeira referente ao estoque","NÃO","SIM"]
[null,"Personalização e acompanhamento financeiro de manutenção do estoque","NÃO","SIM"]
[null,"Relatório Geral de estoque (variedade de itens, quant., valores)","NÃO","SIM"]
[null,"Relatório sintético","NÃO","SIM"]
[null,"Relatório de produto (Entradas, saídas, perdas)","NÃO","SIM"]
[null,"Relatório movimentação mensal (quantidade de itens)","NÃO","SIM"]
[null,"Relatório movimentação financeira","NÃO","SIM"]